Cogmind - Beta 15 @@@ ROGUE MODE // 2025.06.07 @ 12:13:16 Player: Savant Result: Destroyed by Striker with Plasma Lance Performance ------------- Evolutions (8) 4000 Regions Visited (26) 5200 Robots Destroyed (541) 2705 Value Destroyed (33240) 33240 Prototype IDs (102) 2040 Alien Tech Used (5) 1000 Bonus (25155) 25155 TOTAL SCORE: 73340 Bonus ------- Triggered High Security 500 High Alert Combat Kills 18390 Follower Combat Kills 7014 Network Hubs Disabled 400 Registered with UFD 300 Met Optimus in HQ 500 Met Imprinter 300 Met Zhirov 300 Built Enhanced Grunts 300 A7 Reached Mainframe 300 Met R17 at Cetus 500 Met R17 at Research 2000 Met Optimus at Protoforge 1000 Friendly Fire -6649 Cogmind --------- Core Integrity 0/1450 Matter 237/300 Energy 244/850 System Corruption 13% Temperature Cool (0) Movement Walking (103) Location -2/Protoforge Parts ------- > --- POWER (3) -------- Improved Quantum Reactor Improved Quantum Reactor Improved Quantum Reactor > --- PROPULSION (7) --- Improved Thunder Leg Enhanced Biometal Leg Heavy Shield Leg Experimental Biometal Leg (fused) Experimental Biometal Leg Experimental VSS Leg > --- UTILITY (10) ----- Huge Storage Unit Experimental Optical Array Experimental Targeting Computer Experimental Core Analyzer Experimental Kinecellerator (fused) Experimental Reaction Control System Experimental Cloaking Device Concept Core Shell Centrium Medium Armor Plating Improved Remote Force Field > --- WEAPON (3) ------- Compact Linear Accelerator Omega Cannon (fused) > --- INVENTORY (25) --- Improved Quantum Reactor Enhanced Biometal Leg Experimental VSS Leg Experimental VSS Leg Experimental VSS Leg Experimental Heat Sink Experimental Coolant Injector Experimental ECM Suite Gamma Rifle Helical Railgun Concept XC Strikerail Concept XC Strikerail Concept XC Strikerail Point Singularity Launcher UFD Drillbomb Peak State ------------ > --- POWER ------------ Improved Quantum Reactor Improved Quantum Reactor Improved Quantum Reactor > --- PROPULSION ------- Improved Thunder Leg Enhanced Biometal Leg Heavy Shield Leg Experimental Biometal Leg Experimental Biometal Leg Experimental VSS Leg > --- UTILITY ---------- Huge Storage Unit Experimental Optical Array Experimental Core Analyzer Experimental Armor Integrity Analyzer Experimental Kinecellerator Experimental Reaction Control System Experimental Cloaking Device Concept Core Shell Centrium Medium Armor Plating Improved Remote Force Field > --- WEAPON ----------- Concept XC Strikerail Omega Cannon > --- INVENTORY -------- Improved Quantum Reactor Improved Quantum Reactor Experimental VSS Leg Experimental VSS Leg Experimental VSS Leg Experimental VSS Leg Experimental Heat Sink Experimental Coolant Injector Experimental ECM Suite Concept Core Shell Gamma Rifle Concept XC Strikerail Concept XC Strikerail Concept XC Strikerail Point Singularity Launcher UFD Drillbomb [Rating: 249] Favorites ----------- Power Light Antimatter Reactor Engine Light Ion Engine Power Core Fission Core Reactor Light Antimatter Reactor Propulsion Centrium Heavy Treads Treads Centrium Heavy Treads Leg Advanced Myomer Leg Wheel Overtuned Huge Scrapsphere Hover Unit Combat Linear Gravjet Flight Unit Cooled Nuclear Pulse Thruster Utility Huge Storage Unit Device Amulet of Y3-NDR Storage Huge Storage Unit Processor Advanced Terrain Scan Processor Hackware Advanced Hacking Suite Protection Centrium Medium Armor Plating Artifact Phase Redirector Weapon Enhanced Coil Gun Energy Gun Subdweller Laser Energy Cannon Subdweller Beam Cannon Ballistic Gun Enhanced Coil Gun Ballistic Cannon Omega Cannon Launcher Tiamat Missile Launcher Special Weapon Mining Laser Slashing Weapon Makeshift Axe Special Melee Weapon Dirty Datajack Build | -11 -10 -10 -9 -9 -6 -6 -6 -6 -5 -5 -5 -5 -5 -5 -4 -4 -4 -4 -4 -4 -3 -3 -3 -2 -2 -2 ------- Run | Yrd Mat Sub Rec Scr Fac Low Low Zio Pro Fac Ext Cet Arc Hub Fac Was Fac Upp Upp Zhi Pro Res Tes Res Qua Frg Slots Evolved 16 | . . . . . 8 . . . . 2 . . . . 2 . . . . . . 2 . 2 . . Power 2 | . . . . . 1 . . . . . . . . . . . . . . . . . . 1 . . Propulsion 5 | . . . . . 2 . . . . . . . . . 2 . . . . . . 1 . . . . Utility 8 | . . . . . 4 . . . . 2 . . . . . . . . . . . 1 . 1 . . Weapon 1 | . . . . . 1 . . . . . . . . . . . . . . . . . . . . . Parts Attached 368 | 8 7 12 3 4 55 5 6 4 . 27 10 10 11 3 4 4 26 16 4 3 1 23 20 13 11 78 Power 56 | 1 1 1 . 1 8 . 3 . . 2 3 1 1 . . 2 3 4 . 1 . 3 2 3 3 13 Engine 6 | 1 1 1 . . 2 . 1 . . . . . . . . . . . . . . . . . . . Core 10 | . . . . 1 5 . . . . . 1 . . . . . . 1 . . . . . . . 2 Reactor 40 | . . . . . 1 . 2 . . 2 2 1 1 . . 2 3 3 . 1 . 3 2 3 3 11 Propulsion 72 | 2 . 4 1 1 12 3 1 . . 3 . 2 2 . . . 4 3 . 1 . 6 8 1 1 17 Treads 24 | 2 . 2 1 . 5 3 . . . 1 . 2 2 . . . 2 1 . . . 3 . . . . Leg 30 | . . . . . 2 . . . . . . . . . . . . 1 . . . 2 8 1 . 16 Wheel 12 | . . 2 . 1 5 . 1 . . 2 . . . . . . . . . . . . . . . 1 Hover 5 | . . . . . . . . . . . . . . . . . 2 1 . . . 1 . . 1 . Flight 1 | . . . . . . . . . . . . . . . . . . . . 1 . . . . . . Utility 153 | 2 3 2 . . 19 1 2 4 . 13 4 5 6 3 2 2 16 4 2 1 . 10 6 7 6 33 Device 86 | 1 1 2 . . 9 1 2 2 . 7 1 1 5 2 1 1 14 4 1 1 . 5 1 6 4 14 Storage 11 | 1 1 . . . 2 . . . . 1 1 . . . 1 . . . . . . . 2 1 . 1 Processor 15 | . . . . . 2 . . . . 1 . 1 1 . . . . . 1 . . 2 . . . 7 Hackware 10 | . . . . . 5 . . . . 1 1 . . 1 . . . . . . . 2 . . . . Protection 30 | . 1 . . . 1 . . 2 . 3 1 3 . . . 1 2 . . . . 1 3 . 1 11 Artifact 1 | . . . . . . . . . . . . . . . . . . . . . . . . . 1 . Weapon 87 | 3 3 5 2 2 16 1 . . . 9 3 2 2 . 2 . 3 5 2 . 1 4 4 2 1 15 Energy Gun 21 | 3 1 1 . . 3 . . . . 1 1 . . . . . 1 4 1 . . . 2 1 . 2 Energy Cannon 21 | . . 1 . 2 7 . . . . 1 . 1 . . . . . 1 . . 1 3 1 1 1 1 Ballistic Gun 26 | . 1 3 . . 4 . . . . 5 . 1 1 . . . 1 . 1 . . . . . . 9 Ballistic Cannon 3 | . . . . . . . . . . . . . . . . . 1 . . . . . . . . 2 Launcher 9 | . . . . . 2 1 . . . 1 . . . . 2 . . . . . . 1 1 . . 1 Special Weapon 4 | . 1 . 1 . . . . . . . 2 . . . . . . . . . . . . . . . Impact Weapon . | . . . . . . . . . . . . . . . . . . . . . . . . . . . Slashing Weapon 1 | . . . . . . . . . . 1 . . . . . . . . . . . . . . . . Piercing Weapon . | . . . . . . . . . . . . . . . . . . . . . . . . . . . Special Melee Weapon 2 | . . . 1 . . . . . . . . . 1 . . . . . . . . . . . . . Unidentified Prototypes 42 | . . 1 . . 1 . 1 2 . . . 2 . . . 2 1 . . 4 . 1 7 . 2 18 Corrupted Parts 6 | . . . . . 1 . . . . . . 2 2 . . . . . . . . . 1 . . . System Corruption 45 | . . . . . 6 . . . . . . 11 18 . . . . . . . . . 10 . . . Parts Lost 85 | . 2 6 . . 16 . 1 . . 3 1 . . . . . 21 . 1 . . . 1 5 1 27 Power 17 | . 1 . . . 3 . 1 . . . . . . . . . 4 . . . . . 1 1 . 6 Propulsion 21 | . . 2 . . 7 . . . . . . . . . . . 3 . . . . . . . . 9 Utility 26 | . . 1 . . 3 . . . . . 1 . . . . . 8 . 1 . . . . 3 1 8 Weapon 21 | . 1 3 . . 3 . . . . 3 . . . . . . 6 . . . . . . 1 . 4 Highest Loss Streak 9 | . 1 3 . . 5 . 1 . . 1 1 . . . . . 9 . 1 . . . 1 2 1 9 To Critical Strikes . | . . . . . . . . . . . . . . . . . . . . . . . . . . . Average Backups 17 | 4 7 12 13 12 16 20 20 21 20 21 22 21 21 22 22 22 21 22 23 23 23 22 21 20 21 13 Power . | . . . . . . 1 1 1 1 . . . 1 1 1 1 1 . 1 1 1 . . . . . Propulsion 2 | 2 2 3 3 1 1 1 2 1 1 1 . 1 2 2 2 3 2 2 2 2 2 3 2 1 1 3 Utility 7 | . 2 4 2 1 7 9 9 11 12 11 8 9 9 10 11 10 10 13 13 14 13 12 13 11 11 4 Weapon 5 | . 2 3 5 6 5 5 6 6 5 6 10 8 7 7 7 7 5 4 5 5 5 3 3 4 3 4 Tool/Special . | . . . . . . . . . . . . . . . . . . . . . . . . . . . Unused Backups 82 | . 2 7 . 13 7 . . 1 . 13 . 2 . . 1 2 2 3 1 1 . 6 10 1 3 7 Power 10 | . . 1 . . 3 . . . . 2 . 1 . . . . . . . . . 1 . . 1 1 Propulsion 13 | . 2 2 . 2 1 . . . . . . . . . . . . . 1 . . 2 1 . . 2 Utility 41 | . . 3 . 6 3 . . . . 8 . 1 . . 1 2 2 2 . 1 . 2 7 1 1 1 Weapon 13 | . . 1 . 5 . . . . . 3 . . . . . . . 1 . . . 1 2 . . . Tool/Special 5 | . . . . . . . . 1 . . . . . . . . . . . . . . . . 1 3 Average Slot Usage (%) 88 | . 99 99 100 99 88 86 83 78 80 83 81 86 87 87 84 81 79 88 89 74 89 85 89 83 88 88 Engine 2 | . 14 14 14 2 1 . 2 . . . . . . . . . . . . . . . . . . . Core 1 | . . . . 11 7 13 3 . . . . . . . . . . 2 . . . . . . . . Reactor 7 | . . . . . 3 . 5 13 13 11 10 11 11 11 10 7 6 7 10 10 10 9 8 9 13 11 Treads 10 | . 28 23 28 26 11 9 8 . . 1 . 8 11 11 15 15 14 10 10 10 10 16 1 . . . Leg 7 | . . . . . 1 3 . . . . . . . . . . . 4 5 2 . 2 29 27 27 26 Wheel 2 | . . 4 . 1 9 6 8 13 13 10 11 2 . . . . . . . . . . . . . . Device 15 | . 10 13 14 14 13 18 19 20 19 17 22 18 18 17 15 14 14 21 21 21 21 14 13 18 19 14 Storage 6 | . 14 14 14 14 6 6 6 6 6 5 5 5 5 5 5 5 5 5 5 5 5 4 4 4 4 3 Processor 7 | . . . . . 5 6 6 6 6 5 5 9 11 11 10 10 10 10 10 10 10 9 9 5 4 14 Hackware 1 | . . . . . 4 . . . . 2 . . . 4 5 5 4 . . . . 7 4 4 4 . Protection 4 | . 3 . . . 1 1 . . . 8 5 9 9 5 5 5 5 5 5 5 5 3 4 4 6 5 Energy Gun 3 | . 19 8 . 13 2 . . . 3 2 2 5 . . . . 2 9 13 . 7 . . . . . Energy Cannon 4 | . . 5 13 13 10 6 6 5 6 3 . . . 4 3 5 3 1 . . 4 10 11 7 7 . Ballistic Gun 6 | . 8 10 13 . 5 12 13 12 8 8 11 9 16 11 11 9 8 2 1 . 2 2 . . . 4 Peak Build Rating 249 | 8 9 17 20 21 80 81 91 96 93 115 115 134 134 138 155 159 161 142 152 150 154 171 172 194 206 249 Average Rating 121 | 5 7 12 15 19 64 78 83 87 92 102 111 125 132 130 152 153 153 139 145 127 152 166 167 183 198 228 On Entrance 105 | . 8 8 15 20 21 74 75 88 87 93 115 110 133 134 127 152 157 131 141 144 150 150 168 171 177 198 Naked Turns 58 | . . . . . . . . . . . . . . . . . . . . . . . . . . 58 Heaviest Build 199 | 12 30 38 38 40 130 129 130 131 131 145 151 161 152 152 155 155 154 135 149 155 161 171 174 178 198 199 Greatest Support 270 | 40 40 40 40 40 40 20 48 48 48 48 40 160 160 160 240 240 240 160 160 160 160 270 205 200 210 208 Greatest Overweight (x) 50 | . . 3 . 3 9 6 6 2 2 6 3 3 50 . . . . . . . 1 . . . 1 . Average Overweight (x) 1 | . . . . . 3 6 4 2 2 2 3 . 7 . . . . . . . . . . . . . Largest Inventory Capacity 25 | 8 15 15 15 15 25 25 25 25 25 25 25 25 25 25 25 25 25 25 25 25 25 25 25 25 25 25 Average Capacity 22 | 7 13 15 15 15 20 25 25 25 25 25 25 25 25 25 25 25 25 25 25 25 25 25 25 25 25 23 Most Carried 25 | 8 10 15 15 15 24 25 25 25 25 25 25 25 25 25 25 25 25 25 25 25 25 25 25 25 25 25 Average Carried 21 | 4 7 12 14 13 19 24 24 24 24 24 24 24 24 24 24 24 23 23 24 24 24 24 24 24 24 21 Final Capacity 25 | 8 15 15 15 15 25 25 25 25 25 25 25 25 25 25 25 25 25 25 25 25 25 25 25 25 25 25 Final Carried 25 | 8 10 15 15 15 21 25 25 25 25 25 24 25 25 25 25 25 15 25 25 25 25 25 25 25 25 24 Class Distribution -------------------- 26% | Scavenger-Tank 19% | Scavenger-Gunner 15% | Scavenger-Scrapper 13% | Mutant 8% | Commander-Mutant 3% | Gunner Dominant Class ---------------- Mutant | -10/Materials Mutant | -10/Subcaves Mutant | -9/Recycling Commander-Mutant | -9/Scraptown Scavenger-Gunner | -6/Factory Scavenger-Scrapper | -6/Lower Caves Scavenger-Scrapper | -6/Lower Caves Scavenger-Scrapper | -6/Zion Scavenger-Scrapper | -5/Proximity Caves Scavenger-Scrapper | -5/Factory Scavenger-Scrapper | -5/Extension Commander-Tank | -5/Cetus Scavenger-Tank | -5/Archives Scavenger-Tank | -5/Hub_04(d) Scavenger-Tank | -4/Factory Scavenger-Tank | -4/Waste Scavenger-Tank | -4/Factory Scavenger-Tank | -4/Upper Caves Scavenger-Tank | -4/Upper Caves Scavenger-Mutant | -4/Zhirov Scavenger-Tank | -3/Proximity Caves Scavenger-Tank | -3/Research Gunner | -3/Testing Generator-Gunner | -2/Research Tank | -2/Quarantine Scavenger-Gunner | -2/Protoforge Resources | -11 -10 -10 -9 -9 -6 -6 -6 -6 -5 -5 -5 -5 -5 -5 -4 -4 -4 -4 -4 -4 -3 -3 -3 -2 -2 -2 ----------- Run | Yrd Mat Sub Rec Scr Fac Low Low Zio Pro Fac Ext Cet Arc Hub Fac Was Fac Upp Upp Zhi Pro Res Tes Res Qua Frg Matter Collected 25580 | 254 278 380 22 87 2343 414 231 74 73 715 1093 439 705 221 753 103 1800 465 253 . 355 493 710 477 395 12447 Remotely 20 | . . . . . . . . . . . . . . . . . 10 10 . . . . . . . . Salvage Created 28433 | 18 567 138 58 . 2488 329 162 . . 1321 1530 419 303 83 1392 . 3288 336 212 . 85 126 1785 1529 471 11793 Parts 1167 | 3 29 14 1 . 88 15 2 . . 61 58 26 29 4 44 . 140 6 8 . 2 5 82 68 23 459 Haulers Intercepted 6 | . 1 . . . 1 . . . . 1 . . . . . . 2 . . . . . 1 . . . Recyclers Shooed 24 | 1 2 . 1 . 4 . . . . . 1 . . . 10 . 5 . . . . . . . . . Parts Field Recycled . | . . . . . . . . . . . . . . . . . . . . . . . . . . . Retrieved Matter . | . . . . . . . . . . . . . . . . . . . . . . . . . . . Parts Self-Destructed 62 | . . 23 . . . 18 3 . 1 . . . . . . . . 6 7 . 4 . . . . . Prevented 65 | . . . . . . . 8 . 12 . . . . . . . . 23 8 . 14 . . . . . Kills | -11 -10 -10 -9 -9 -6 -6 -6 -6 -5 -5 -5 -5 -5 -5 -4 -4 -4 -4 -4 -4 -3 -3 -3 -2 -2 -2 ------- Run | Yrd Mat Sub Rec Scr Fac Low Low Zio Pro Fac Ext Cet Arc Hub Fac Was Fac Upp Upp Zhi Pro Res Tes Res Qua Frg Combat Hostiles Destroyed 450 | . 11 4 1 . 31 8 3 . . 15 19 4 1 1 11 . 51 4 5 . 1 5 19 17 7 232 Melee 1 | . . . . . . . . . . . . . . . . . . . . . . . . . . 1 Guns 151 | . 9 3 . . 6 4 . . . 5 18 . 1 1 8 . 23 4 4 . . . . . . 65 Cannons 199 | . . . 1 . 16 1 3 . . 3 . . . . 2 . 7 . . . . 1 6 8 5 146 AOE 59 | . 2 1 . . 2 3 . . . 7 1 2 . . . . 17 . 1 . . 3 5 . 1 14 Classes Destroyed 27 | 1 4 2 . . 7 1 . . . 1 3 . . . . . 1 . 1 . . . . . . 6 Worker 12 | . . . . . 2 . . . . . . . . . 1 . 2 . . . . . 4 2 . 1 Builder 22 | . . . . . 2 . . . . 1 2 . . . . . 11 . . . . . 5 . . 1 Tunneler 2 | 1 1 . . . . . . . . . . . . . . . . . . . . . . . . . Hauler 7 | . 1 . . . 1 . . . . 1 . . . . . . 2 . . . . . 1 . . 1 Recycler 13 | . . . . . 3 . . . . 2 1 . . . 5 . 1 . . . . . 1 . . . Minesweeper 1 | . . . . . . . . . . . . . . . . . . . 1 . . . . . . . Mechanic 14 | . . . . . 1 . . . . . . . . . . . 3 . . . . . 1 . . 9 Operator 11 | . . . . . 1 . . . . 1 . . 6 1 . . . . . . . . 1 . . 1 Drone 32 | . . . . . . . . . . . . . . . . . . . . . . . . . . 32 Watcher 12 | . 3 . . . . . . . . . . 1 . . . . 2 . . . . . 2 2 1 1 Swarmer 40 | . 3 2 . . . 3 1 . . 1 1 . . . 2 . 1 . 4 . . 4 3 . . 15 Saboteur 6 | . . . . . . . . . . . . . . . . . . . . . . . . . . 6 Grunt 119 | . 8 1 . . 22 3 1 . . 9 6 . . 1 1 . 22 2 1 . . . 8 2 . 32 Brawler 19 | . . . . . . . . . . . . . . . . . 1 1 . . . . . . . 17 Duelist 10 | . . . . . . 1 . . . . . . . . . . 1 . . . . . . . . 8 Protector 6 | . . . . . . . . . . . 2 . . . . . . . . . . . . . . 4 Sentry 26 | . . 1 1 . 3 1 1 . . 1 6 . 1 . . . 3 1 . . . 1 1 2 . 3 Specialist 3 | . . . . . . . . . . . 1 . . . . . . . . . . . . 2 . . Hunter 40 | . . . . . . . . . . . 2 . . . 3 . 10 . . . 1 . . 5 2 17 Programmer 69 | . . . . . 6 . . . . 4 . . . . 5 . 13 . . . . . 7 6 5 23 Cetus Guard 4 | . . . . . . . . . . . . 4 . . . . . . . . . . . . . . Hotshot 20 | . . . . . . . . . . . . . . . . . . . . . . . . . . 20 Decapitator 6 | . . . . . . . . . . . . . . . . . . . . . . . . . . 6 Immortal 4 | . . . . . . . . . . . . . . . . . . . . . . . . . . 4 Striker 38 | . . . . . . . . . . . . . . . . . . . . . . . . . . 38 Executioner 6 | . . . . . . . . . . . . . . . . . . . . . . . . . . 6 Artisan 1 | . . 1 . . . . . . . . . . . . . . . . . . . . . . . . Scrapoid 4 | . . . . . 1 . . . . . . . . . . . . . . . . . . . . 3 Scraphulk 1 | . . . . . . . . . . . . . . . . . . . . . . . . . . 1 Thug 1 | . . . . . . . . . . . 1 . . . . . . . . . . . . . . . Wizard 4 | . . . . . . . . . . 3 . . . . . . 1 . . . . . . . . . Mutant 1 | . . . . . . . . . . 1 . . . . . . . . . . . . . . . . Best Kill Streak 14 | 1 4 2 1 . 6 4 3 . . 5 4 3 2 1 4 . 14 2 4 . 1 4 12 6 3 10 Combat Bots Only 10 | . 3 2 1 . 4 4 3 . . 5 4 2 1 1 3 . 8 2 4 . 1 4 3 6 2 10 Max Kills in Single Turn 10 | 1 2 1 1 . 3 3 1 . . 4 1 2 2 1 2 . 5 1 2 . 1 3 10 1 2 2 Gunslinging 1 | . . . . . . . . . . . . . . . 1 . 1 . 1 . . . . . . . Exploded 4 | . 2 1 . . 1 3 . . . 4 1 2 . . . . 3 . 1 . . 3 2 . 1 2 Melee 1 | . . . . . . . . . . . . . . . . . . . . . . . . . . 1 Uniques/NPCs Destroyed 1 | . . . . . . . . . . . . 1 . . . . . . . . . . . . . . A7 (-5/Cetus) Combat | -11 -10 -10 -9 -9 -6 -6 -6 -6 -5 -5 -5 -5 -5 -5 -4 -4 -4 -4 -4 -4 -3 -3 -3 -2 -2 -2 -------- Run | Yrd Mat Sub Rec Scr Fac Low Low Zio Pro Fac Ext Cet Arc Hub Fac Was Fac Upp Upp Zhi Pro Res Tes Res Qua Frg Hostile Shots Fired 1987 | . 67 32 1 . 278 43 35 . . 40 77 21 2 10 92 . 484 19 12 . . 13 65 201 59 436 Missed 618 | . 24 9 . . 93 9 14 . . 12 21 9 . 2 32 . 119 8 5 . . 3 18 58 12 170 Hits 1369 | . 43 23 1 . 185 34 21 . . 28 56 12 2 8 60 . 365 11 7 . . 10 47 143 47 266 Melee 24 | . . . . . . 1 . . . . 1 . . . . . 12 . . . . . . . . 10 Projectile 1345 | . 43 23 1 . 185 33 21 . . 28 55 12 2 8 60 . 353 11 7 . . 10 47 143 47 256 AOE 3 | . . . . . . . . . . 1 1 . . . . . . . . . . . . . . 1 Critical Strikes 91 | . 1 . . . 8 . . . . 2 3 6 . . 3 . 30 1 . . . . 7 9 3 18 Actively Blocked 10 | . . . . . . . . . . . . . . . . . 5 . . . . . . 3 2 . Part Disruptions 5 | . . . . . . . . . . . . . . . . . 2 . . . . . 2 . 1 . Damage Taken 27217 | . 534 292 17 . 3466 485 315 . 17 951 1038 239 65 100 883 . 7360 230 127 . 14 226 1184 2024 611 7039 Core 2539 | . 100 6 17 . 173 20 17 . . 26 65 19 39 12 34 . 473 47 . . . 21 140 289 52 989 Absorbed by Shields 4385 | . . . . . . . . . . 27 377 85 23 36 323 . 413 . 49 . 14 26 566 1164 477 805 Reduced by Siege Mode 348 | . . . . . . . . . . . . . . . 13 . 329 6 . . . . . . . . Redirected to Shielding 343 | . . . . . . . . . . 59 . . . . . . . . . . . . . . 55 229 Ignored by Resistances 342 | . . . . . . . . . . . . . . . . . . . . . . . . 342 . . Regen/Repaired (Parts) 2484 | . . . . . 310 23 30 10 33 39 . . . . 17 . 995 . . . . . 430 255 342 . Core Remaining (%) 74 | 100 . . . 50 . . . . 75 . . . . 83 . . . . . . 51 . 87 . . . Volleys Fired 1600 | 4 63 57 1 . 156 13 24 1 3 34 72 29 40 18 64 . 161 12 6 . 7 21 70 104 52 588 Largest 3 | 2 2 2 2 . 3 3 3 1 1 3 3 3 3 3 3 . 3 3 3 . 3 2 1 1 1 3 Hottest 313 | 90 100 120 110 . 230 152 152 90 90 197 150 173 90 173 203 . 173 195 224 . 234 162 105 113 200 313 Shots Fired 2512 | 8 118 67 3 . 279 32 41 1 3 76 172 54 75 24 122 . 321 26 19 . 11 23 71 104 52 810 Gun 1253 | 8 116 24 1 . 84 20 18 . . 55 163 28 53 8 85 . 230 26 18 . 7 . . 8 9 292 Cannon 1140 | . . 6 2 . 195 11 23 1 3 18 . 10 . 16 37 . 74 . 1 . 4 21 70 96 43 509 Launcher 42 | . . . . . . 1 . . . 3 . 9 . . . . 17 . . . . 2 1 . . 9 Special 77 | . 2 37 . . . . . . . . 9 7 22 . . . . . . . . . . . . . Kinetic 1363 | . 34 11 1 . 52 20 18 . . 40 132 24 53 6 78 . 169 1 4 . . . . . . 720 Thermal 696 | 8 20 53 2 . 147 11 23 1 3 22 . 17 22 16 37 . 81 5 7 . 5 17 37 42 43 77 Explosive 33 | . . . . . . 1 . . . 3 . . . . . . 17 . . . . 2 1 . . 9 Electromagnetic 411 | . 64 3 . . 80 . . . . 11 31 13 . 2 7 . 54 20 8 . 6 4 33 62 9 4 Robot Hit Streak 25 | 3 8 9 1 . 12 6 9 . . 8 20 11 15 6 15 . 17 16 18 . 12 13 10 11 5 25 Robot Miss Streak 14 | 4 6 1 1 . 3 2 2 . . 2 3 2 4 1 3 . 5 2 3 . . 1 2 4 3 14 Penetration Max 2 | . . . . . 1 1 . . . 1 2 . 1 . 1 . 1 . . . . . . . . 2 Secondary Targets 9 | . 1 . . . . . . . . . . . . . 2 . 2 . 3 . . . . . . 1 Max Gunslinging Chain 2 | . 1 . . . . . . . . . . . . . 1 . 1 . 2 . . . . . . 1 Capacitor 286 | . . . . . . . . . . . . . . . . . . . . . . 1 70 104 46 65 Shots Hit Robots 1577 | 3 67 16 1 . 147 18 15 . . 46 120 39 53 6 88 . 216 17 12 . 5 4 42 47 16 599 Core Hits 785 | 1 32 6 1 . 68 12 4 . . 38 49 27 18 4 25 . 127 9 8 . 1 4 35 17 9 290 Critical Kills 53 | . . . . . 1 1 . . . 2 6 . 2 . 4 . 11 . . . . . 4 2 1 19 Critical Parts Destroyed 44 | . . . . . 2 1 1 . . 1 5 . 1 . 3 . 10 . . . . . . . . 20 Critical Strikes 173 | . 1 . . . 5 2 1 . . 4 13 . 4 . 7 . 22 . . . . . 6 4 1 103 Burn 2 | . 1 . . . . . . . . 1 . . . . . . . . . . . . . . . . Meltdown 14 | . . . . . 1 . . . . . . . . . 1 . 3 . . . . . 4 2 1 2 Destroy 87 | . . . . . 2 2 1 . . 3 13 . 4 . 6 . 18 . . . . . . . . 38 Blast 63 | . . . . . . . . . . . . . . . . . . . . . . . . . . 63 Corrupt 7 | . . . . . 2 . . . . . . . . . . . 1 . . . . . 2 2 . . Melee Attacks 11 | . . . . . . . . . . 11 . . . . . . . . . . . . . . . . Impact . | . . . . . . . . . . . . . . . . . . . . . . . . . . . Slashing 11 | . . . . . . . . . . 11 . . . . . . . . . . . . . . . . Piercing . | . . . . . . . . . . . . . . . . . . . . . . . . . . . Sneak Attacks 1 | . . . . . . . . . . 1 . . . . . . . . . . . . . . . . Combat Hostiles . | . . . . . . . . . . . . . . . . . . . . . . . . . . . Follow-up Attacks . | . . . . . . . . . . . . . . . . . . . . . . . . . . . Damage Inflicted 110387 | 36 1044 227 34 . 5539 758 466 . . 2872 4021 2147 1373 170 3238 . 12402 404 388 . 143 941 4166 2600 1535 65883 Guns 28319 | 36 818 203 . . 1316 337 207 . . 938 3910 708 1265 169 2250 . 5306 404 285 . 69 . . 125 140 9833 Cannons 62226 | . . . 28 . 3033 161 259 . . 302 . 400 . . 888 . 1972 . 37 . 74 98 1957 2176 1104 49737 Explosions 18736 | . 203 24 . . 1190 260 . . . 1517 111 1005 . . . . 5014 . 66 . . 772 2154 254 291 5875 Melee 115 | . . . . . . . . . . 115 . . . . . . . . . . . . . . . . Ramming 849 | . 23 . 6 . . . . . . . . . . 1 100 . 110 . . . . 71 55 45 . 438 Kinetic 69267 | . 169 49 . . 783 337 207 . . 788 3252 642 1265 116 2145 . 4138 . 29 . . . . . . 55347 Thermal 19758 | 36 242 142 28 . 2354 161 259 . . 654 111 719 108 . 888 . 2714 . 244 . 36 . 1088 1190 1395 7389 Explosive 10366 | . . . . . 511 260 . . . 1141 . . . . . . 4461 . . . . 772 561 . . 2660 Electromagnetic 10032 | . 610 36 . . 1891 . . . . 174 658 786 . 53 105 . 979 404 115 . 107 98 2462 1365 140 49 Impact . | . . . . . . . . . . . . . . . . . . . . . . . . . . . Slashing 115 | . . . . . . . . . . 115 . . . . . . . . . . . . . . . . Piercing . | . . . . . . . . . . . . . . . . . . . . . . . . . . . Highest Corruption 21 | . 1 1 1 . 16 16 16 16 . 2 1 12 12 . 3 3 11 11 11 11 11 . 21 6 9 13 Average Corruption 7 | . 1 1 1 . 9 16 16 16 . 1 1 8 6 . 2 3 4 11 11 11 11 . 8 3 6 12 Corruption Purged 55 | . . . . . . . . . . 2 . . 30 . . . 5 . . . . . . 3 13 2 Corruption Blocked . | . . . . . . . . . . . . . . . . . . . . . . . . . . . Effects 908 | . 7 22 10 . 85 46 37 2 . 12 12 26 30 . 14 9 58 44 39 8 41 . 22 12 27 345 Message Errors 237 | . 3 4 4 . 20 12 7 . . 5 4 2 8 . 2 1 16 17 12 1 9 . 7 4 10 89 Matter Fused 206 | . . 4 1 . 21 7 10 . . 2 3 8 8 . 2 2 14 8 5 4 11 . 3 2 4 87 Heat Flow Errors 113 | . 1 5 2 . 12 8 3 1 . . 2 4 1 . 2 1 8 5 9 . 7 . 3 2 3 34 Energy Discharges 101 | . 1 4 1 . 13 3 6 . . 1 1 5 4 . 1 2 7 6 3 1 4 . 2 1 3 32 Parts Rejected 14 | . . . . . 1 1 . . . . . . . . . . 1 . . . . . . . . 11 Parts Fused 10 | . . . 1 . . . . . . . . 1 . . . 1 . . 1 . . . . . 1 5 Data Loss (minor) 88 | . 2 3 . . 7 7 3 . . 1 . 3 5 . 3 2 5 2 7 1 6 . 3 2 1 25 Data Loss (major) 45 | . . 1 . . 3 3 2 . . 1 . 2 1 . . . 1 2 . . 1 . 3 1 3 21 Misfires 24 | . . 1 1 . 3 1 3 . . 2 . . 1 . 1 . 3 1 2 . 2 . 1 . 1 1 Alerts 18 | . . . . . 2 2 1 1 . . . . . . 2 . . 1 . 1 1 . . . . 7 Misdirections 12 | . . . . . . . . . . . . . . . . . . 1 . . . . . . . 11 Weapon Failures 40 | . . . . . 3 2 2 . . . 2 1 2 . 1 . 3 1 . . . . . . 1 22 Overload Shots . | . . . . . . . . . . . . . . . . . . . . . . . . . . . Overflow Damage 9978 | . . 21 . . 52 . 16 . . 176 . . . . 82 . 339 . . . . 83 170 217 180 8642 Projectiles 8331 | . . . . . 50 . 16 . . . . . . . 51 . 74 . . . . . 33 99 152 7856 Explosions 1477 | . . 21 . . 2 . . . . 176 . . . . . . 232 . . . . 83 137 113 28 685 Melee 170 | . . . . . . . . . . . . . . . 31 . 33 . . . . . . 5 . 101 Knockbacks 157 | . . . . . . . . . . . . . . . 1 . . . . . . . . . . 156 Impact 2 | . . . . . . . . . . . . . . . 1 . . . . . . . . . . 1 Kinetic 139 | . . . . . . . . . . . . . . . . . . . . . . . . . . 139 Secondary 16 | . . . . . . . . . . . . . . . . . . . . . . . . . . 16 Self-Inflicted Damage 1732 | . 22 31 . . 307 44 . . . 72 41 4 . . . . 415 . . . . 26 634 101 . 35 Shots 31 | . 1 1 . . 5 1 . . . 1 1 1 . . . . 9 . . . . 2 7 1 . 1 Rammed 18 | . 5 . 1 . . . . . . . . . . 1 3 . 6 . . . . 2 . . . . Targets Rammed 36 | . 5 . 1 . . . . . . . . . . 1 3 . 7 . . . . 2 1 1 . 15 Kicked 17 | . . . . . . . . . . . . . . . . . . . . . . . 1 1 . 15 Crushed 1 | . . . . . . . . . . . . . . . . . 1 . . . . . . . . . Highest Temperature 469 | 90 258 241 244 . 469 277 264 86 118 226 121 247 256 166 313 110 341 333 238 . 236 156 330 379 428 317 Average Temperature 92 | 47 63 110 87 . 104 99 101 40 53 56 28 80 169 57 78 61 75 89 87 . 85 46 88 170 122 109 Received Heat Transfer 4145 | . 300 36 . . 1331 138 96 . . 152 177 . . 24 6 . 1017 45 6 . . 4 35 114 12 652 Effects 24 | . . . . . 10 . . . . . . . . . . . 3 . . . . . 1 3 4 3 Shutdowns 3 | . . . . . 2 . . . . . . . . . . . . . . . . . . . 1 . Energy Bleed 7 | . . . . . 1 . . . . . . . . . . . . . . . . . 1 3 1 1 Interference 12 | . . . . . 6 . . . . . . . . . . . 3 . . . . . . . 1 2 Short Circuit 2 | . . . . . 1 . . . . . . . . . . . . . . . . . . . 1 . Siege Activations 14 | . . . . . . . . . . . . . . . 2 . 10 2 . . . . . . . . Total Turns 140 | . . . . . . . . . . . . . . . 14 . 115 11 . . . . . . . . Longest Duration 25 | . . . . . . . . . . . . . . . 12 . 25 9 . . . . . . . . Martial Activations . | . . . . . . . . . . . . . . . . . . . . . . . . . . . Shielding Activations 1 | . . . . . . . . . . . . . . . . . . . . . . . . 1 . . Total Turns 7 | . . . . . . . . . . . . . . . . . . . . . . . . 7 . . Longest Duration 7 | . . . . . . . . . . . . . . . . . . . . . . . . 7 . . Robots Disrupted 1 | . . . . . 1 . . . . . . . . . . . . . . . . . . . . . Combat Hostiles . | . . . . . . . . . . . . . . . . . . . . . . . . . . . Robots Corrupted 33 | . . . . . 7 . . . . . . 2 . . 2 . 3 . . . 1 1 5 8 . 4 Combat Hostiles 23 | . . . . . 5 . . . . . . 2 . . . . 2 . . . 1 1 4 7 . 1 Parts Fried 87 | . 3 . . . 15 . . . . 3 5 4 . . 5 . 8 4 . . 3 1 19 14 . 3 Impact Corruptions 17 | . . . . . . . . . . . . . . . 2 . 2 . . . . . . 1 . 12 Robots Melted 15 | . . . . . 2 . . . . . . . . . 1 . 3 . . . . . 4 2 1 2 Combat Hostiles 14 | . . . . . 2 . . . . . . . . . 1 . 2 . . . . . 4 2 1 2 Parts Melted 55 | 1 . . . . 6 . . . . 3 . . . . 1 . 11 . . . . . 19 6 3 5 Heat Transferred 15492 | 99 435 322 37 . 3027 250 400 . . 800 50 553 375 . 814 . 2448 . 272 . 37 . 100 150 797 4526 Parts Sabotaged 3 | . . . . . . . . . . . . . . . . . . . . . . . . . . 3 Parts Stolen . | . . . . . . . . . . . . . . . . . . . . . . . . . . . Parts Stripped . | . . . . . . . . . . . . . . . . . . . . . . . . . . . Power Chain Reactions 20 | . 2 1 . . 5 . . . . 1 1 2 . . . . . . 1 . . . 5 2 . . Alert | -11 -10 -10 -9 -9 -6 -6 -6 -6 -5 -5 -5 -5 -5 -5 -4 -4 -4 -4 -4 -4 -3 -3 -3 -2 -2 -2 ------- Run | Yrd Mat Sub Rec Scr Fac Low Low Zio Pro Fac Ext Cet Arc Hub Fac Was Fac Upp Upp Zhi Pro Res Tes Res Qua Frg Maximum Alert Level 5 | . . . 1 . 2 . . . . 3 5 4 2 2 3 1 5 . . . . . 3 3 1 5 Low Security (%) 36 | 100 100 . 96 . 62 . . . . 28 . . 64 31 19 33 21 . . . . 100 41 9 70 3 Level 1 14 | . . . 3 . 15 . . . . 28 2 . 21 57 15 66 18 . . . . . 10 38 29 2 Level 2 10 | . . . . . 22 . . . . 14 45 . 14 11 10 . 9 . . . . . 23 39 . 3 Level 3 14 | . . . . . . . . . . 28 34 . . . 54 . 27 . . . . . 24 12 . 19 Level 4 6 | . . . . . . . . . . . 9 100 . . . . 12 . . . . . . . . 9 Level 5 17 | . . . . . . . . . . . 5 . . . . . 9 . . . . . . . . 62 High Security . | . . . . . . . . . . . 2 . . . . . . . . . . . . . . . Max Security . | . . . . . . . . . . . . . . . . . . . . . . . . . . . Peak Influence 5132 | 5 125 . 215 . 546 . . . . 928 2015 1402 520 435 1029 348 1857 . . . . 193 870 759 278 5132 Initial 1128 | . . . 10 . . . . . . . 419 1128 464 . 85 348 93 . . . . . 100 391 228 19 Average 869 | . 48 . 84 . 197 . . . . 433 859 1262 161 241 636 240 733 . . . . 45 427 445 125 2239 Influence Increases 24331 | 5 458 181 448 . 1647 180 239 . 253 2266 2310 412 340 685 1523 . 3110 413 246 . 214 413 1275 1093 457 6163 Destroy 0b10 Robot/C 11920 | . 220 140 160 . 880 160 140 . 120 960 940 160 80 260 560 . 1420 260 180 . 120 160 420 520 140 3920 Destroy 0b10 Robot/NC 805 | 5 25 . 5 . 55 . . . . 85 40 10 30 5 50 . 130 . 5 . . 15 70 25 5 245 Destroy Leader 1988 | . 58 10 . . 222 20 10 . 20 176 132 . . 50 110 . 284 40 20 . 30 32 56 104 32 582 Allied During Kill 3115 | . . 16 76 . 70 . 29 . 113 473 782 170 110 266 421 . 225 68 41 . 64 36 11 144 . . Successful Hack 631 | . 18 . 26 . 61 . . . . . 47 9 . 12 66 . 88 . . . . 36 126 69 40 33 Select Force Hacks 210 | . 30 . 180 . . . . . . . . . . . . . . . . . . . . . . . Disable Machine 1695 | . . . . . 135 . . . . 225 75 . 60 30 150 . 255 . . . . 30 225 . 90 420 Destroy Structure 2872 | . 17 . 1 . 149 . . . . 302 174 48 60 62 166 . 618 . . . . 104 322 216 135 498 Partial Spotted 45 | . . . . . . . . . . 15 . . . . . . . . . . . . 30 . . . Lose Combat Pursuer 1050 | . 90 15 . . 75 . 60 . . 30 120 15 . . . . 90 45 . . . . 15 15 15 465 Influence Decreases 19199 | 5 429 188 378 92 1105 629 332 . 253 1410 1151 1265 1502 510 702 862 1389 1293 620 601 214 234 757 1384 828 1066 Entered New Map 5193 | . . 15 12 92 . 201 19 . . . 437 887 698 . 90 648 41 687 186 601 . . 79 306 178 16 Time Decay 9594 | 5 409 133 326 . 477 428 303 . 253 600 534 318 644 368 482 214 688 446 404 . 174 232 498 398 490 770 Lost Part 810 | . 20 20 . . 160 . 10 . . 30 10 . . . . . 210 . 10 . . . 10 50 10 270 Lost Ally 1652 | . . 20 40 . 168 . . . . 180 20 60 160 142 130 . 300 160 20 . 40 2 20 180 . 10 Purge Threat 1950 | . . . . . 300 . . . . 600 150 . . . . . 150 . . . . . 150 450 150 . Squads Dispatched 133 | . 2 . . . 25 . . . . 17 7 . . 7 6 . 26 . . . . 8 3 12 4 16 Investigation 38 | . 2 . . . 6 . . . . 6 3 . . . 4 . 8 . . . . 4 . 1 . 4 Extermination 33 | . . . . . 7 . . . . 3 . . . 2 2 . 6 . . . . . 3 3 4 3 Reinforcement 43 | . . . . . 4 . . . . 7 1 . . 5 . . 9 . . . . 4 . 5 . 8 Assault 9 | . . . . . 1 . . . . 1 3 . . . . . 3 . . . . . . . . 1 Garrison 10 | . . . . . 7 . . . . . . . . . . . . . . . . . . 3 . . Intercept . | . . . . . . . . . . . . . . . . . . . . . . . . . . . Searches Triggered . | . . . . . . . . . . . . . . . . . . . . . . . . . . . Construction Impeded 5 | . . . . . 1 . . . . . . . . . . . 2 . . . . . . 1 . 1 Haulers Reinforced 9 | . . . . . 2 . . . . 2 . . . . . . 2 . . . . 3 . . . . Active Scanning Responses . | . . . . . . . . . . . . . . . . . . . . . . . . . . . Cargo Convoy Interrupts . | . . . . . . . . . . . . . . . . . . . . . . . . . . . Stealth | -11 -10 -10 -9 -9 -6 -6 -6 -6 -5 -5 -5 -5 -5 -5 -4 -4 -4 -4 -4 -4 -3 -3 -3 -2 -2 -2 --------- Run | Yrd Mat Sub Rec Scr Fac Low Low Zio Pro Fac Ext Cet Arc Hub Fac Was Fac Upp Upp Zhi Pro Res Tes Res Qua Frg Distress Signals 52 | . 2 . . . 5 . . . . 2 . 2 . . 1 . 5 . . . . 8 . . . 27 Communications Jammed 29 | . . . . . . . . . . . . . . . . . 11 . . . . . 2 6 7 3 Distress Signals 25 | . . . . . . . . . . . . . . . . . 9 . . . . . 2 4 7 3 Times Spotted 983 | . 23 18 6 . 52 7 7 . 5 48 52 7 44 9 32 . 89 11 9 . 6 8 27 32 11 480 Peak Tracking Total 12 | . 4 3 3 . 5 4 4 . 4 5 12 5 1 4 4 . 9 2 4 . 2 4 4 5 3 11 Tactical Retreats 63 | . 3 1 . . 4 . 2 . . 1 5 1 . . . . 6 3 . . . . 1 1 1 34 Traps | -11 -10 -10 -9 -9 -6 -6 -6 -6 -5 -5 -5 -5 -5 -5 -4 -4 -4 -4 -4 -4 -3 -3 -3 -2 -2 -2 ------- Run | Yrd Mat Sub Rec Scr Fac Low Low Zio Pro Fac Ext Cet Arc Hub Fac Was Fac Upp Upp Zhi Pro Res Tes Res Qua Frg Traps Triggered 27 | . 2 . . . 2 . . . . 7 4 . . 1 1 . 1 . . . . 3 4 2 . . Indirectly 4 | . . . . . . . . . . . . . . . . . . . . . . . 4 . . . Trap Hack Attempts . | . . . . . . . . . . . . . . . . . . . . . . . . . . . Triggered . | . . . . . . . . . . . . . . . . . . . . . . . . . . . Disarmed . | . . . . . . . . . . . . . . . . . . . . . . . . . . . Reprogrammed . | . . . . . . . . . . . . . . . . . . . . . . . . . . . Reused . | . . . . . . . . . . . . . . . . . . . . . . . . . . . Traps Extracted . | . . . . . . . . . . . . . . . . . . . . . . . . . . . Installed . | . . . . . . . . . . . . . . . . . . . . . . . . . . . Triggered . | . . . . . . . . . . . . . . . . . . . . . . . . . . . Machines | -11 -10 -10 -9 -9 -6 -6 -6 -6 -5 -5 -5 -5 -5 -5 -4 -4 -4 -4 -4 -4 -3 -3 -3 -2 -2 -2 ---------- Run | Yrd Mat Sub Rec Scr Fac Low Low Zio Pro Fac Ext Cet Arc Hub Fac Was Fac Upp Upp Zhi Pro Res Tes Res Qua Frg Machines Disabled 128 | . . 2 . . 9 . . . . 15 10 . 4 2 10 . 17 . . . 1 2 20 . 7 29 Max in Single Turn 10 | . . 1 . . 4 . . . . 3 1 . . 1 1 . 5 . . . 1 1 10 . 1 5 Garrison Access 7 | . . . . . . . . . . 1 . . . 1 1 . 1 . . . . 2 . . 1 . Network Hub 2 | . . . . . . . . . . . . . . 2 . . . . . . . . . . . . Machines Repaired . | . . . . . . . . . . . . . . . . . . . . . . . . . . . Machines Dismantled 3 | . . . . . . . . . . . 3 . . . . . . . . . . . . . . . Machines Sabotaged . | . . . . . . . . . . . . . . . . . . . . . . . . . . . Overloaded Fab Kills . | . . . . . . . . . . . . . . . . . . . . . . . . . . . Hacking | -11 -10 -10 -9 -9 -6 -6 -6 -6 -5 -5 -5 -5 -5 -5 -4 -4 -4 -4 -4 -4 -3 -3 -3 -2 -2 -2 --------- Run | Yrd Mat Sub Rec Scr Fac Low Low Zio Pro Fac Ext Cet Arc Hub Fac Was Fac Upp Upp Zhi Pro Res Tes Res Qua Frg Machines Accessed 154 | . 7 2 12 1 24 . . . . 10 19 1 . 3 8 . 17 . . 5 . 10 9 7 11 8 Terminals 67 | . 5 . 6 . 10 . . . . 1 17 1 . 2 1 . 3 . . . . 2 5 2 6 6 Fabricators 13 | . . . . . 3 . . . . 2 . . . . 2 . 4 . . . . 1 . 1 . . Repair Stations 10 | . . . . . 1 . . . . . . . . . 1 . 3 . . . . . 2 1 2 . Recycling Units 33 | . 2 . 6 . 5 . . . . 5 2 . . . 3 . 4 . . . . 4 . 1 . 1 Scanalyzers 11 | . . . . . 2 . . . . 1 . . . . . . 2 . . . . 1 2 . 2 1 Garrison Access 12 | . . . . . 3 . . . . 1 . . . 1 1 . 1 . . . . 2 . 2 1 . Total Hacks 452 | . 18 4 26 3 66 . . . . 18 36 2 . 8 33 . 59 . . 18 . 30 49 23 39 20 Successful 236 | . 9 4 15 3 37 . . . . 9 18 1 . 5 16 . 27 . . 18 . 14 25 11 17 7 Failed 216 | . 9 . 11 . 29 . . . . 9 18 1 . 3 17 . 32 . . . . 16 24 12 22 13 Catastrophic 41 | . . . 1 . 4 . . . . 3 3 1 . . 1 . 7 . . . . 6 4 4 3 4 Database Lockouts . | . . . . . . . . . . . . . . . . . . . . . . . . . . . Manual 203 | . 17 . 24 . 32 . . . . 11 9 1 . 4 11 . 29 . . . . 16 14 5 13 17 Terminals 200 | . 15 . 18 . 27 . . . . 1 34 2 . 6 4 . 10 . . . . 7 28 11 19 18 Fabricators 58 | . . . . . 10 . . . . 5 . . . . 14 . 19 . . . . 5 . 5 . . Repair Stations 40 | . . . . . 3 . . . . . . . . . 8 . 9 . . . . . 6 2 12 . Recycling Units 53 | . 3 . 8 . 10 . . . . 7 2 . . . 3 . 11 . . . . 7 . 1 . 1 Scanalyzers 50 | . . . . . 11 . . . . 3 . . . . . . 9 . . . . 5 15 . 6 1 Garrison Access 26 | . . . . . 5 . . . . 2 . . . 2 4 . 1 . . . . 6 . 4 2 . Terminal Hacks 69 | . 1 4 3 3 9 . . . . 1 13 1 . 1 1 . 2 . . 18 . . 3 5 3 1 Record 12 | . . 3 . 3 . . . . . . . . . . . . . . . 6 . . . . . . Part Schematic 6 | . . . 1 . . . . . . . . . . . . . . . . 4 . . 1 . . . Robot Schematic 1 | . . . . . 1 . . . . . . . . . . . . . . . . . . . . . Robot Analysis 6 | . . . 1 . . . . . . . . . . . . . . . . 4 . . 1 . . . Prototype ID Bank 6 | . . . 1 . . . . . . . . . . 1 . . . . . 4 . . . . . . Open Door 11 | . . . . . . . . . . 1 9 1 . . . . . . . . . . . . . . Branch Access Points 1 | . . . . . . . . . . . . . . . . . 1 . . . . . . . . . Terminal Index 1 | . . . . . . . . . . . . . . . 1 . . . . . . . . . . . Alert Level 7 | . . . . . 3 . . . . . 1 . . . . . . . . . . . . 1 1 1 Unreport Threat 9 | . . . . . 2 . . . . . 1 . . . . . 1 . . . . . 1 3 1 . Locate Traps 5 | . 1 . . . 1 . . . . . 2 . . . . . . . . . . . . 1 . . Recall Investigation 1 | . . . . . 1 . . . . . . . . . . . . . . . . . . . . . Recall Extermination 1 | . . . . . . . . . . . . . . . . . . . . . . . . . 1 . Registered Components 1 | . . . . . 1 . . . . . . . . . . . . . . . . . . . . . Proto ID Catalog 1 | . . 1 . . . . . . . . . . . . . . . . . . . . . . . . Fabricator Hacks 14 | . . . . . 4 . . . . 1 . . . . 4 . 3 . . . . 1 . 1 . . Network Status 4 | . . . . . . . . . . . . . . . 1 . 1 . . . . 1 . 1 . . Load Schematic 3 | . . . . . 2 . . . . . . . . . 1 . . . . . . . . . . . Build 7 | . . . . . 2 . . . . 1 . . . . 2 . 2 . . . . . . . . . Repair Station Hacks 18 | . . . . . 1 . . . . . . . . . 2 . 3 . . . . . 4 2 6 . Scan Component 12 | . . . . . 1 . . . . . . . . . 2 . 2 . . . . . 2 1 4 . Repair 6 | . . . . . . . . . . . . . . . . . 1 . . . . . 2 1 2 . Recycling Unit Hacks 2 | . . . . . . . . . . . . . . . . . 1 . . . . 1 . . . . Retrieve Components 2 | . . . . . . . . . . . . . . . . . 1 . . . . 1 . . . . Scanalyzer 32 | . . . . . 9 . . . . 2 . . . . . . 2 . . . . 3 10 . 6 . Insert Component 21 | . . . . . 5 . . . . 1 . . . . . . 2 . . . . 2 6 . 5 . Analyze 11 | . . . . . 4 . . . . 1 . . . . . . . . . . . 1 4 . 1 . Garrison Access Hacks 7 | . . . . . . . . . . 1 . . . 1 1 . 1 . . . . 2 . . 1 . Seal Access 7 | . . . . . . . . . . 1 . . . 1 1 . 1 . . . . 2 . . 1 . Unauthorized Hacks 94 | . 8 . 12 . 14 . . . . 4 5 . . 3 8 . 15 . . . . 7 8 3 1 6 Terminals 41 | . 7 . 6 . 7 . . . . . 3 . . 3 1 . . . . . . 2 7 . 1 4 Track 5 | . . . . . 3 . . . . . . . . 1 . . . . . . . . 1 . . . Assimilate 3 | . . . . . . . . . . . . . . . . . . . . . . . 2 . . 1 Botnet 11 | . 1 . 1 . 2 . . . . . 1 . . 1 1 . . . . . . 1 1 . 1 1 Disrupt 2 | . . . . . 1 . . . . . . . . . . . . . . . . . . . . 1 Operators 6 | . 1 . . . 1 . . . . . . . . 1 . . . . . . . 1 1 . . 1 Skim 14 | . 5 . 5 . . . . . . . 2 . . . . . . . . . . . 2 . . . Fabricators 20 | . . . . . 3 . . . . . . . . . 4 . 9 . . . . 2 . 2 . . Report 1 | . . . . . . . . . . . . . . . . . 1 . . . . . . . . . Prioritize 4 | . . . . . . . . . . . . . . . 1 . 3 . . . . . . . . . Liberate 9 | . . . . . 1 . . . . . . . . . 2 . 4 . . . . 1 . 1 . . Haulers 5 | . . . . . 1 . . . . . . . . . 1 . 1 . . . . 1 . 1 . . Recompile 1 | . . . . . 1 . . . . . . . . . . . . . . . . . . . . . Repair Stations 2 | . . . . . . . . . . . . . . . . . 2 . . . . . . . . . Patch 2 | . . . . . . . . . . . . . . . . . 2 . . . . . . . . . Recycling Units 29 | . 1 . 6 . 4 . . . . 4 2 . . . 3 . 4 . . . . 3 . 1 . 1 Tunnel 7 | . 1 . 6 . . . . . . . . . . . . . . . . . . . . . . . Fedlink 22 | . . . . . 4 . . . . 4 2 . . . 3 . 4 . . . . 3 . 1 . 1 Scanalyzers 2 | . . . . . . . . . . . . . . . . . . . . . . . 1 . . 1 Researchers 2 | . . . . . . . . . . . . . . . . . . . . . . . 1 . . 1 Garrison Access . | . . . . . . . . . . . . . . . . . . . . . . . . . . . Data Cores Recovered . | . . . . . . . . . . . . . . . . . . . . . . . . . . . Used . | . . . . . . . . . . . . . . . . . . . . . . . . . . . Hacking Detections 98 | . 6 . 7 . 21 . . . . 5 9 . . 3 5 . 10 . . . . 6 8 5 7 6 Full Trace Events 5 | . 1 . . . 1 . . . . . 1 . . . 1 . 1 . . . . . . . . . Feedback Events 2 | . 1 . . . 1 . . . . . . . . . . . . . . . . . . . . . Corruption 2 | . 1 . . . 1 . . . . . . . . . . . . . . . . . . . . . Feedback Blocked . | . . . . . . . . . . . . . . . . . . . . . . . . . . . Robot Schematics Acquired 4 | . . . . . 1 . . 3 . . . . . . . . . . . . . . . . . . Robots Built 7 | . . . . . 3 . . . . . . . . . 1 . 3 . . . . . . . . . Authchips 1 | . . . . . 1 . . . . . . . . . . . . . . . . . . . . . Time 345 | . . . . . 232 . . . . . . . . . 29 . 84 . . . . . . . . . Total Robot Build Rating 30 | . . . . . 9 . . . . . . . . . 3 . 18 . . . . . . . . . Part Schematics Acquired 33 | . . . 1 . 4 . . 16 . 1 . . . . . . . . . 4 . 1 5 . 1 . Parts Built 5 | . . . . . . . . . . 2 . . . . 2 . 1 . . . . . . . . . Authchips . | . . . . . . . . . . . . . . . . . . . . . . . . . . . Time 202 | . . . . . . . . . . 64 . . . . 69 . 69 . . . . . . . . . Total Part Build Rating 43 | . . . . . . . . . . 16 . . . . 18 . 9 . . . . . . . . . Parts Repaired 6 | . . . . . . . . . . . . . . . . . 1 . . . . . 2 1 2 . Time 328 | . . . . . . . . . . . . . . . . . 68 . . . . . 88 36 136 . Parts Recycled . | . . . . . . . . . . . . . . . . . . . . . . . . . . . Recycled Matter . | . . . . . . . . . . . . . . . . . . . . . . . . . . . Retrieved Matter . | . . . . . . . . . . . . . . . . . . . . . . . . . . . Retrieved Components . | . . . . . . . . . . . . . . . . . . . . . . . . . . . Parts Scanalyzed 12 | . . . . . 4 . . . . 1 . . . . . . 1 . . . . 1 4 . 1 . Part Schematics Acquired 11 | . . . . . 4 . . . . 1 . . . . . . . . . . . 1 4 . 1 . Parts Damaged 4 | . . . . . 2 . . . . . . . . . . . 1 . . . . 1 . . . . Bothacking | -11 -10 -10 -9 -9 -6 -6 -6 -6 -5 -5 -5 -5 -5 -5 -4 -4 -4 -4 -4 -4 -3 -3 -3 -2 -2 -2 ------------ Run | Yrd Mat Sub Rec Scr Fac Low Low Zio Pro Fac Ext Cet Arc Hub Fac Was Fac Upp Upp Zhi Pro Res Tes Res Qua Frg Used RIF Installer . | . . . . . . . . . . . . . . . . . . . . . . . . . . . Robots Hacked 2 | . . . . . . . . . . . 2 . . . . . . . . . . . . . . . Non-combat . | . . . . . . . . . . . . . . . . . . . . . . . . . . . Combat 1 | . . . . . . . . . . . 1 . . . . . . . . . . . . . . . Robot Hacks Applied 1 | . . . . . . . . . . . 1 . . . . . . . . . . . . . . . parse_system 1 | . . . . . . . . . . . 1 . . . . . . . . . . . . . . . Manual 1 | . . . . . . . . . . . 1 . . . . . . . . . . . . . . . Relay Couplers Released 4 | . . . . . . . . . . . . . . . . . 4 . . . . . . . . . Programmers 4 | . . . . . . . . . . . . . . . . . 4 . . . . . . . . . Fabnet Peak Effective % . | . . . . . . . . . . . . . . . . . . . . . . . . . . . Robots Rewired 11 | . . . 8 . . . . . . . 3 . . . . . . . . . . . . . . . Allies Hacked 3 | . . . . . . . . . . . 2 . . . . . 1 . . . . . . . . . Hacks Repelled . | . . . . . . . . . . . . . . . . . . . . . . . . . . . Allies | -11 -10 -10 -9 -9 -6 -6 -6 -6 -5 -5 -5 -5 -5 -5 -4 -4 -4 -4 -4 -4 -3 -3 -3 -2 -2 -2 -------- Run | Yrd Mat Sub Rec Scr Fac Low Low Zio Pro Fac Ext Cet Arc Hub Fac Was Fac Upp Upp Zhi Pro Res Tes Res Qua Frg Total Allies 148 | . . 13 8 1 8 . 6 8 . 10 21 5 . . 11 1 19 8 8 . 2 6 1 11 . 1 Largest Group 20 | . . 9 15 14 13 . 4 12 12 8 19 20 19 11 6 1 5 4 4 4 4 4 3 5 . 1 Highest-Rated Group 1057 | . . 169 201 226 238 . 324 519 519 424 752 1057 905 643 511 81 405 324 324 324 324 324 229 381 . 10 Highest-Rated Ally 159 | . . 19 19 50 50 . 81 81 81 81 159 152 96 96 96 81 81 81 81 81 81 81 81 81 . 10 Total Orders 23 | . . . . 3 3 . . . . . . 3 2 11 1 . . . . . . . . . . . STAY 12 | . . . . 1 . . . . . . . 1 1 9 . . . . . . . . . . . . FOLLOW 5 | . . . . . . . . . . . . 2 1 2 . . . . . . . . . . . . AID 2 | . . . . . 1 . . . . . . . . . 1 . . . . . . . . . . . TUNNEL 1 | . . . . . 1 . . . . . . . . . . . . . . . . . . . . . DROP 1 | . . . . . 1 . . . . . . . . . . . . . . . . . . . . . PICKUP 1 | . . . . 1 . . . . . . . . . . . . . . . . . . . . . . COLLECT 1 | . . . . 1 . . . . . . . . . . . . . . . . . . . . . . Ally Attacks 1064 | . . 32 30 . 116 . 14 . 32 153 185 28 47 59 73 . 107 41 21 . 28 37 8 53 . . Total Damage 30949 | . . 476 501 . 1779 . 595 . 1280 4409 4151 457 1142 1592 3577 . 3710 878 1193 . 663 1366 556 2624 . . Kills 240 | . . 4 8 . 16 . 6 . 7 50 33 5 3 12 26 . 27 9 7 . 5 7 3 12 . . Allies Corrupted 5 | . . . . . . . . . . . . . . 2 . . 2 . . . . . . 1 . . Allies Melted 8 | . . . . . 1 . . . . . . . . 1 . . 1 . . . . 1 . . . 4 Intel | -11 -10 -10 -9 -9 -6 -6 -6 -6 -5 -5 -5 -5 -5 -5 -4 -4 -4 -4 -4 -4 -3 -3 -3 -2 -2 -2 ------- Run | Yrd Mat Sub Rec Scr Fac Low Low Zio Pro Fac Ext Cet Arc Hub Fac Was Fac Upp Upp Zhi Pro Res Tes Res Qua Frg Active Infowar (turns) 34622 | 17 1331 1867 1121 3524 1749 953 836 1071 1004 965 164 . . 816 681 . 2270 1029 970 251 1135 1307 895 853 1137 8676 Optics 8676 | . . . . . . . . . . . . . . . . . . . . . . . . . . 8676 IFF 2454 | . . . . . . 904 479 1071 . . . . . . . . . . . . . . . . . . Terrain 12488 | . 56 . . . 888 900 458 . 1004 965 164 . . 283 680 . 1328 985 835 . 1015 1100 596 395 554 282 Seismic 9436 | 17 1275 1867 1121 3524 1098 . . . . . . . . 533 1 . . . . . . . . . . . Cloaking 4282 | . . . . . . . 1 . . . . . . . . . . . . . . . . . 613 3668 Jamming 8447 | . . . . . . . . . . . . . . . . . 1193 749 970 251 1135 1298 699 793 1137 222 ECM 698 | . . . . . . . . . . . . . . . . . 1 . . . . . . . . 697 Robot Analysis Total 6 | . . . 1 . . . . . . . . . . . . . . . . 4 . . 1 . . . Derelict Logs Recovered 16 | . . 2 . 5 . 1 2 1 1 . . . . . . . . 3 1 . . . . . . . Drone Launches . | . . . . . . . . . . . . . . . . . . . . . . . . . . . Drone Recoveries . | . . . . . . . . . . . . . . . . . . . . . . . . . . . Exploration | -11 -10 -10 -9 -9 -6 -6 -6 -6 -5 -5 -5 -5 -5 -5 -4 -4 -4 -4 -4 -4 -3 -3 -3 -2 -2 -2 ------------- Run | Yrd Mat Sub Rec Scr Fac Low Low Zio Pro Fac Ext Cet Arc Hub Fac Was Fac Upp Upp Zhi Pro Res Tes Res Qua Frg Turns Passed 47317 | 163 1724 3669 1121 3524 3021 1059 858 1078 1006 2080 1552 716 3095 1068 1257 448 2766 1116 970 251 1135 1338 1339 949 1280 8734 Spaces Moved 27754 | 86 889 2340 621 2185 1721 719 647 933 739 1499 930 380 549 401 622 268 1170 615 568 142 682 745 773 539 781 6210 Core 135 | 6 . . . . . . . . . . . . 82 . . . . . . . . . . . . 47 Treads 10901 | 80 889 1430 621 1908 1 . . . . . . 267 467 401 622 268 1170 615 568 142 682 745 25 . . . Legs 8230 | . . . . . . . . . . . . . . . . . . . . . . . 748 539 781 6162 Wheels 8488 | . . 910 . 277 1720 719 647 933 739 1499 930 113 . . . . . . . . . . . . . 1 Hover . | . . . . . . . . . . . . . . . . . . . . . . . . . . . Flight . | . . . . . . . . . . . . . . . . . . . . . . . . . . . Fastest Speed 50 | 50 160 110 160 120 110 130 109 109 109 100 100 100 160 160 160 160 155 160 160 160 160 155 108 108 110 50 Average Speed 136 | 152 160 140 160 156 125 130 120 109 109 113 100 144 516 160 160 160 159 160 160 160 160 158 114 108 114 99 Slowest Speed 2550 | 160 160 240 160 160 360 130 130 109 109 130 100 240 2550 160 160 160 160 160 160 160 240 166 168 110 194 118 Overloaded Moves . | . . . . . . . . . . . . . . . . . . . . . . . . . . . Propulsion Burnouts . | . . . . . . . . . . . . . . . . . . . . . . . . . . . Robots Hopped 1 | . . . . . . . . . . . . . . . . . . . . . . . . . . 1 Potential Cave-ins 7 | . . . . . . . . . . . . . . . . . . . . . . . . . . 7 Cave-ins Triggered . | . . . . . . . . . . . . . . . . . . . . . . . . . . . Teleports 1 | . . . . . . . . . . . . . . . . . . . . . . . . . . 1 Exploration Rate (%) 66 | 6 78 94 98 87 45 92 92 84 90 35 86 68 88 30 17 92 34 81 89 60 91 27 83 21 81 59 Regions Visited 26 Branch Regions 18 Pre-discovered Areas 19 | . 2 . 10 1 1 1 . 1 . . . . . . . . . . . 3 . . . . . . Known Exits Taken 9 | . 1 1 . . 1 . 1 . 1 . . . . . . . 1 . . . . 1 1 1 . . Unknown Exits Taken 15 | 1 . . 1 1 . 1 . 1 . 1 1 1 1 1 . . . 1 1 1 1 . . . 1 . Scrap Searched 35 | . . 5 . 3 . 1 11 2 2 . . . . . . . . 3 3 . 5 . . . . . Spaces Dug 319 | . 1 1 . . 62 17 15 . 3 32 5 . . 15 11 . 18 3 . . 2 32 34 25 14 29 Terrain Destroyed 1490 | . 14 3 1 . 142 43 23 . 3 121 102 40 38 20 58 . 317 3 8 . 2 43 192 53 46 218 Melee 9 | . . . . . . . . . . 9 . . . . . . . . . . . . . . . . Projectile 687 | . 2 2 1 . 79 27 23 . 3 35 99 19 38 20 58 . 111 3 3 . 2 17 13 29 19 84 AOE 794 | . 12 1 . . 63 16 . . . 77 3 21 . . . . 206 . 5 . . 26 179 24 27 134 Terrain Rammed . | . . . . . . . . . . . . . . . . . . . . . . . . . . . Walls Destroyed . | . . . . . . . . . . . . . . . . . . . . . . . . . . . Machines Disabled . | . . . . . . . . . . . . . . . . . . . . . . . . . . . Actions | -11 -10 -10 -9 -9 -6 -6 -6 -6 -5 -5 -5 -5 -5 -5 -4 -4 -4 -4 -4 -4 -3 -3 -3 -2 -2 -2 --------- Run | Yrd Mat Sub Rec Scr Fac Low Low Zio Pro Fac Ext Cet Arc Hub Fac Was Fac Upp Upp Zhi Pro Res Tes Res Qua Frg Total 35003 | 107 1064 2566 746 2294 2311 815 694 992 936 1818 1423 515 756 801 786 288 1834 730 614 165 711 883 1226 895 1153 7880 Wait 3673 | 1 73 98 38 52 216 61 3 38 191 126 325 67 135 357 52 . 373 42 8 . 4 15 239 162 233 764 Move 27727 | 85 888 2339 620 2184 1720 718 646 932 738 1498 929 379 548 400 622 267 1169 614 567 141 681 744 772 538 780 6208 Hop 1 | . . . . . . . . . . . . . . . . . . . . . . . . . . 1 Pick Up 361 | 9 7 19 2 26 39 2 2 3 1 37 3 9 3 1 8 2 17 18 7 2 1 14 32 17 24 56 Fast Attach 237 | 6 4 3 . 3 22 1 5 5 . 16 4 3 9 3 2 6 19 6 1 9 2 24 15 11 7 51 Attach 140 | 1 2 4 . . 22 . . . . 11 2 2 5 . 2 . 21 1 3 . . 4 10 6 10 34 Detach 56 | . . 1 . . 8 . . . . 6 1 2 4 . . . 4 2 2 . 1 6 1 2 1 15 Swap 593 | 1 18 31 3 3 91 18 6 5 2 37 28 13 5 18 25 3 45 19 15 3 12 18 42 33 21 78 Drop 407 | . 4 14 1 26 35 2 8 8 1 42 7 11 7 2 8 10 18 16 5 10 3 34 43 21 23 48 Fire 1600 | 4 63 57 1 . 156 13 24 1 3 34 72 29 40 18 64 . 161 12 6 . 7 21 70 104 52 588 Melee 11 | . . . . . . . . . . 11 . . . . . . . . . . . . . . . . Ram . | . . . . . . . . . . . . . . . . . . . . . . . . . . . Kick 17 | . . . . . . . . . . . . . . . . . . . . . . . 1 1 . 15 Crush 19 | . 5 . 1 . . . . . . . . . . 1 3 . 7 . . . . 2 . . . . Escape Stasis 24 | . . . . . . . . . . . 24 . . . . . . . . . . . . . . . Rewire 82 | . . . 80 . . . . . . . 2 . . . . . . . . . . . . . . . Trap . | . . . . . . . . . . . . . . . . . . . . . . . . . . . Miscellaneous 55 | . . . . . 2 . . . . . 26 . . 1 . . . . . . . 1 1 . 2 22 Route ------- -11/Scrapyard -10/Materials (discovered 6 exits: *Mat x3 / *Min x2 / *Sub) -10/Subcaves (discovered 3 exits: *Mat x2 / *Rec) -9/Recycling (discovered 2 exits: [*Fac] / *Scr) -9/Scraptown (discovered 2 exits: *Fac x2) -6/Factory (discovered 5 exits: *Fac x3 / *Low x2) -6/Lower Caves -6/Lower Caves (discovered 2 exits: *Fac / *Zio) -6/Zion -5/Proximity Caves -5/Factory (discovered 4 exits: *Fac x2 / *Ext x2) -5/Extension (discovered 3 exits: *Fac x2 / *Cet) -5/Cetus (discovered 2 exits: *Fac / [*Arc]) -5/Archives (discovered 3 exits: *Fac / *Hub x2) -5/Hub_04(d) -4/Factory -4/Waste -4/Factory (discovered 5 exits: *Res x2 / *Upp x2 / Arm) -4/Upper Caves -4/Upper Caves (discovered 2 exits: *Res / *Zhi) -4/Zhirov -3/Proximity Caves -3/Research (discovered 3 exits: Res / *Tes x2) -3/Testing -2/Research -2/Quarantine (discovered 3 exits: [Acc] / [*Sec] / *Frg) -2/Protoforge History --------- Turn | Location | Event 11 | -11/Scrapyard | Discovered new exit (range 15) 164 | -11/Scrapyard | Entered Materials 306 | -10/Materials | Build established: Mutant 437 | -10/Materials | Discovered new exit (range 15) 657 | -10/Materials | Discovered new exit (range 16) 672 | -10/Materials | Learned location of 2 exits from Subcaves 744 | -10/Materials | Learned location of Subcaves (-10) 804 | -10/Materials | Learned Storage terminal intel 854 | -10/Materials | Identified exit to Mines 854 | -10/Materials | Identified exit to Subcaves 892 | -10/Materials | Learned location of 2 exits from Subcaves 922 | -10/Materials | Identified exit to Materials 940 | -10/Materials | Learned location of 2 exits from Mines 966 | -10/Materials | Learned 2 Mines zone layouts 1002 | -10/Materials | Learned 2 Storage zone layouts 1047 | -10/Materials | Learned 2 Materials zone layouts 1888 | -10/Materials | Entered Subcaves 1889 | -10/Subcaves | Approached by a straggling Scientist 1889 | -10/Subcaves | Identified exit to Recycling 1889 | -10/Subcaves | Identified exit to Materials 1973 | -10/Subcaves | A swath of the cavern ceiling suddenly collapsed 2449 | -10/Subcaves | Lost 3 parts (1n1u1w) 2493 | -10/Subcaves | Visited triangular shrine 2500 | -10/Subcaves | Found Prototype Device 2506 | -10/Subcaves | Identified V3-11A's Pendant 2511 | -10/Subcaves | Befriended Subdweller 2536 | -10/Subcaves | Visited Clippyterm 2539 | -10/Subcaves | Learned Factory garrison access intel 2625 | -10/Subcaves | Befriended Subdweller 2716 | -10/Subcaves | Befriended Subdweller 2795 | -10/Subcaves | Learned 8 Materials zone layouts 2920 | -10/Subcaves | Befriended Subdweller 2955 | -10/Subcaves | Befriended Subdweller 3138 | -10/Subcaves | A swath of the cavern ceiling suddenly collapsed 3465 | -10/Subcaves | Befriended Subdweller 3745 | -10/Subcaves | Befriended Subdweller 3765 | -10/Subcaves | Befriended Subdweller 3910 | -10/Subcaves | Shifting Twisted Machinery released Sub. Power Source 3919 | -10/Subcaves | Shifting Twisted Machinery released Sub. Monowheel 3921 | -10/Subcaves | Shifting Twisted Machinery released Battle Rifle 4571 | -10/Subcaves | Ambushed by angry Subdweller bent on revenge 4821 | -10/Subcaves | Lost 3 allies 4926 | -10/Subcaves | Visited 4L-MR0's lab 4943 | -10/Subcaves | Found Powered Cannon 5023 | -10/Subcaves | Disturbed a concealed Subdweller 5026 | -10/Subcaves | Befriended Subdweller 5234 | -10/Subcaves | Ambushed by Subdwellers from Twisted Machinery 5236 | -10/Subcaves | Befriended Subdweller 5236 | -10/Subcaves | Befriended Subdweller 5344 | -10/Subcaves | Ambushed by Subdwellers from Twisted Machinery 5346 | -10/Subcaves | Befriended Subdweller 5351 | -10/Subcaves | Befriended Subdweller 5557 | -10/Subcaves | Entered Recycling 5557 | -9/Recycling | Accompanied by 9 allies 5802 | -9/Recycling | Discovered new exit (range 12) 6201 | -9/Recycling | Learned 4 Materials zone layouts 6215 | -9/Recycling | P-60 Hacker assimilated allied 5I-8PG(R) 6264 | -9/Recycling | Learned 2 Storage zone layouts 6317 | -9/Recycling | Learned Storage trap positions 6417 | -9/Recycling | Learned Materials emergency access door positions 6432 | -9/Recycling | Learned Materials trap positions 6493 | -9/Recycling | Learned Storage trap positions 6564 | -9/Recycling | Build established: Commander-Mutant 6617 | -9/Recycling | Scanned before Scraplab entrance 6643 | -9/Recycling | Entered Scraplab 6655 | -9/Recycling | Discovered new exit (range 2) 6678 | -9/Recycling | Entered Scraptown 6678 | -9/Scraptown | Accompanied by 13 allies 6678 | -9/Scraptown | System corruption cleaned by C-Scrubber 6781 | -9/Scraptown | Delivered V3-11A's Pendant to T0-NE2 in exchange for information 6971 | -9/Scraptown | Scanned Subdweller tech in exchange for log data 6974 | -9/Scraptown | Learned Factory security intel 6976 | -9/Scraptown | Learned 8 Factory zone layouts 6977 | -9/Scraptown | Learned location of Warlord (-5) 6982 | -9/Scraptown | Learned Research garrison access intel 7049 | -9/Scraptown | Discovered new exit (range 11) 7102 | -9/Scraptown | Visited Symbiants 7115 | -9/Scraptown | Visited The Evicted 7136 | -9/Scraptown | Visited Fellowship of the Rings 7169 | -9/Scraptown | Visited Awakened 7190 | -9/Scraptown | Visited Cave Peace 7221 | -9/Scraptown | Visited CPS Storage 7251 | -9/Scraptown | Visited Science Testing Area 7446 | -9/Scraptown | Visited UFD Registry 7446 | -9/Scraptown | Registered with UFD as "Fluxspawn" 7686 | -9/Scraptown | Visited Curators Association 7748 | -9/Scraptown | Visited Chapter 10 7784 | -9/Scraptown | Visited Abandonware Association 7801 | -9/Scraptown | Learned abandonware demo "KABOOM.EXE" 7929 | -9/Scraptown | Delivered Scrap Shield to a Scientist 7994 | -9/Scraptown | Visited LU-1G1's Boring Crew 8018 | -9/Scraptown | Visited Supply Room 8071 | -9/Scraptown | Visited Supply Room 8096 | -9/Scraptown | Visited Botcube Research 8147 | -9/Scraptown | Visited Scrapoid Research Area 8192 | -9/Scraptown | Visited Scrapoid Pod Storage 9013 | -9/Scraptown | Found Botcube 9040 | -9/Scraptown | Botcube activated 9064 | -9/Scraptown | Botcube completed mutation into wheeled form, armed with 1 gun, 1 cannon. 9475 | -9/Scraptown | Visited Infowarlord's Domain 9484 | -9/Scraptown | Found Exp. Terrain Scanner 10007 | -9/Scraptown | Discovered new exit (range 5) 10124 | -9/Scraptown | Met Optimus 10124 | -9/Scraptown | Accepted into 0bPrime 10202 | -9/Scraptown | Entered Factory 10202 | -6/Factory | Accompanied by 13 allies 10202 | -6/Factory | Evolved 8 slots: Power x1, Propulsion x2, Utility x4, Weapon x1 10203 | -6/Factory | Identified exit to Lower Caves 10203 | -6/Factory | Identified exit to Factory 10205 | -6/Factory | Loaded intel: 4 garrison access locations 10262 | -6/Factory | Found Scrap Suit 10265 | -6/Factory | Lost 6 allies 10265 | -6/Factory | Found Scrapoid Pod 10355 | -6/Factory | Discovered exit to Lower Caves (range 24) 10366 | -6/Factory | Garrison activated, responded to threat 10408 | -6/Factory | Fabricated H-55 Commando? 10473 | -6/Factory | Garrison activated, responded to threat 10474 | -6/Factory | Lost 7 allies 10683 | -6/Factory | Discovered exit to Factory (range 8) 11016 | -6/Factory | Lost 3 parts (1p2n) 11061 | -6/Factory | Garrison activated, responded to threat 11156 | -6/Factory | Lost 5 parts (1p2n2w) 11657 | -6/Factory | Loaded intel: 8 recycling unit locations 11671 | -6/Factory | Discovered exit to Factory (range 6) 11737 | -6/Factory | Build established: Scavenger-Gunner 11737 | -6/Factory | Scrapoid Pod released 06F07-D (x5) 11844 | -6/Factory | Found Scrap Suit 11883 | -6/Factory | Lost 3 allies 12114 | -6/Factory | Found Scrap Suit 12117 | -6/Factory | System corruption reached 10% 12510 | -6/Factory | Learned location of Protoforge (-2) 12652 | -6/Factory | First assault squad dispatched 13016 | -6/Factory | Fabricated M-28 Smith (x1) 13223 | -6/Factory | Entered Lower Caves 13225 | -6/Lower Caves | UFD Scientist delivered a prototype 13226 | -6/Lower Caves | Found Prototype Protection 13332 | -6/Lower Caves | Build established: Scavenger-Scrapper 13612 | -6/Lower Caves | Spotted B-75 Beast 13787 | -6/Lower Caves | Attracted the attention of an 0b10 checkpoint 13844 | -6/Lower Caves | Learned location of Zion (-6) 13992 | -6/Lower Caves | Encountered a Warlord checkpoint 14064 | -6/Lower Caves | Discovered new exit (range 23) 14282 | -6/Lower Caves | Entered another Lower Caves area 14284 | -6/Lower Caves | Attracted the attention of an 0b10 checkpoint 14340 | -6/Lower Caves | Discovered exit to Factory (range 10) 14386 | -6/Lower Caves | Prototype Device suddenly appears! 14410 | -6/Lower Caves | Found Prototype Device 14411 | -6/Lower Caves | Identified Amulet of Y3-NDR 14445 | -6/Lower Caves | Identified exit to Zion 14499 | -6/Lower Caves | Learned Factory terminal intel 14533 | -6/Lower Caves | Joined by bewildered Wizard 14533 | -6/Lower Caves | Joined by bewildered Wizard 14663 | -6/Lower Caves | Joined by bewildered Wizard 14666 | -6/Lower Caves | Joined by bewildered Wizard 14859 | -6/Lower Caves | Joined by bewildered Wizard 14859 | -6/Lower Caves | Joined by bewildered Wizard 15140 | -6/Lower Caves | Entered Zion 15140 | -6/Zion | Accompanied by 4 allies 15202 | -6/Zion | System corruption cleaned by Quarantine Array 15321 | -6/Zion | Discovered new exit (range 13) 15328 | -6/Zion | Given A8's code to call for help 15493 | -6/Zion | Learned location of 1 exit from Proximity Caves 15584 | -6/Zion | Found Prototype Device 15585 | -6/Zion | Identified Phasing AFG 15644 | -6/Zion | Gained Derelict followers 15711 | -6/Zion | Gained Derelict followers 15776 | -6/Zion | Given the Hacking Drone Bay 15805 | -6/Zion | Turned away by Imprinter 15916 | -6/Zion | Found Prototype Device 15921 | -6/Zion | Identified Hacking Drone Bay 16218 | -6/Zion | Entered Proximity Caves 16218 | -5/Proximity Caves | Accompanied by 12 allies 16270 | -5/Proximity Caves | Lost 3 allies 17195 | -5/Proximity Caves | Received a Behemoth hack from an annoying Tinkerer 17224 | -5/Proximity Caves | Entered Factory 17224 | -5/Factory | Accompanied by 8 allies 17224 | -5/Factory | Evolved 2 slots: Utility x2 17225 | -5/Factory | Loaded intel: 28 terminal locations 17232 | -5/Factory | Found Powered Armor 17235 | -5/Factory | Found Powered Armor 17237 | -5/Factory | Found Powered Armor 17240 | -5/Factory | Found Powered Armor 17242 | -5/Factory | Found Powered Armor 17359 | -5/Factory | Joined by bewildered Wizard 17368 | -5/Factory | Loaded intel: 8 recycling unit locations 17506 | -5/Factory | Discovered new exit (range 24) 17614 | -5/Factory | Joined by bewildered Wizard 17644 | -5/Factory | Discovered new exit (range 8) 17726 | -5/Factory | Assembled infested ambush trap array 17778 | -5/Factory | Murdered 3 allies 17811 | -5/Factory | Joined by bewildered Wizard 17811 | -5/Factory | Joined by bewildered Wizard 17812 | -5/Factory | Joined by bewildered Wizard 17876 | -5/Factory | Discovered new exit (range 6) 17997 | -5/Factory | Joined by bewildered Wizard 18058 | -5/Factory | Identified Enh. Scrap Shield 18188 | -5/Factory | Found Imp. Powered Armor 18247 | -5/Factory | Joined by bewildered Wizard 18247 | -5/Factory | Joined by bewildered Wizard 18301 | -5/Factory | Discovered new exit (range 29) 18688 | -5/Factory | Joined by bewildered Wizard 18689 | -5/Factory | Joined by bewildered Wizard 18745 | -5/Factory | Found Imp. Powered Armor 18747 | -5/Factory | Found Imp. Powered Armor 18758 | -5/Factory | Lost 3 allies 19022 | -5/Factory | Build established: Scavenger-Mutant 19024 | -5/Factory | First assault squad dispatched 19237 | -5/Factory | Fabricated Nova Cannon (x2) 19304 | -5/Factory | Entered Extension 19324 | -5/Extension | Build established: Scavenger-Scrapper 19809 | -5/Extension | Rescued A7 19877 | -5/Extension | Rescued a captive Derelict 19878 | -5/Extension | Rescued a captive Derelict 19881 | -5/Extension | Loaded intel: 2 recycling unit locations 19911 | -5/Extension | Rescued a captive Derelict 19912 | -5/Extension | Rescued a captive Derelict 19922 | -5/Extension | Rescued a captive Derelict 19923 | -5/Extension | Rescued a captive Derelict 19963 | -5/Extension | Rescued a captive Derelict 19963 | -5/Extension | Rescued a captive Derelict 19971 | -5/Extension | Rescued a captive Derelict 20244 | -5/Extension | Spotted B-75 Beast 20244 | -5/Extension | Befriended a Behemoth using the annoying Tinkerer's hack 20258 | -5/Extension | Spotted B-75 Beast 20258 | -5/Extension | Allies destroyed B-75 Beast 20275 | -5/Extension | Discovered new exit (range 5) 20384 | -5/Extension | Rescued a captive Derelict 20386 | -5/Extension | Rescued a captive Derelict 20417 | -5/Extension | Rescued a captive Derelict 20425 | -5/Extension | Rescued a captive Derelict 20426 | -5/Extension | Rescued a captive Derelict 20504 | -5/Extension | First assault squad dispatched 20516 | -5/Extension | Rescued a captive Derelict 20629 | -5/Extension | Disrupted transfer network 20727 | -5/Extension | Rescued a captive Derelict 20773 | -5/Extension | Discovered new exit (range 11) 20801 | -5/Extension | Discovered new exit (range 7) 20821 | -5/Extension | High security lockdown imminent 20856 | -5/Extension | Entered Cetus 20856 | -5/Cetus | Accompanied by 18 allies (A7) 20861 | -5/Cetus | Acquired a Cetus Manufacturing Module code from A7 20882 | -5/Cetus | Spotted Cetus Guard 20882 | -5/Cetus | Spotted Cetus Guard 20887 | -5/Cetus | Spotted Cetus Guard 20888 | -5/Cetus | Spotted Cetus Guard 20893 | -5/Cetus | Destroyed Cetus Guard 20893 | -5/Cetus | Destroyed Cetus Guard 20895 | -5/Cetus | Allies destroyed Cetus Guard 20897 | -5/Cetus | Allies destroyed Cetus Guard 20924 | -5/Cetus | Lost 3 allies 20943 | -5/Cetus | Escorted A7 to Cetus Mainframe 20954 | -5/Cetus | Started Cetus Manufacturing Module 20966 | -5/Cetus | Discovered new exit (range 16) 20979 | -5/Cetus | Manufactured an Enhanced Grunt 20983 | -5/Cetus | Spotted Cetus Guard 20983 | -5/Cetus | Spotted Cetus Guard 20990 | -5/Cetus | Allies destroyed Cetus Guard 20990 | -5/Cetus | Spotted Cetus Guard 20995 | -5/Cetus | Destroyed Cetus Guard 20997 | -5/Cetus | Destroyed Cetus Guard 20997 | -5/Cetus | Spotted Cetus Guard 20998 | -5/Cetus | Allies destroyed Cetus Guard 21004 | -5/Cetus | Manufactured an Enhanced Grunt 21005 | -5/Cetus | Discovered new exit (range 15) 21010 | -5/Cetus | Met Revision 17 21014 | -5/Cetus | System corruption reached 10% 21029 | -5/Cetus | Manufactured an Enhanced Grunt 21054 | -5/Cetus | Manufactured an Enhanced Grunt 21079 | -5/Cetus | Manufactured an Enhanced Grunt 21287 | -5/Cetus | Build established: Commander-Tank 21425 | -5/Cetus | Murdered A7 21432 | -5/Cetus | Extracted ID and sensor layout for unrecognized location from A7's data core 21572 | -5/Cetus | Entered Archives 21572 | -5/Archives | Accompanied by 19 allies 21648 | -5/Archives | Discovered new exit (range 16) 21656 | -5/Archives | Lost 8 allies 21693 | -5/Archives | Discovered new exit (range 16) 21851 | -5/Archives | Discovered new exit (range 16) 21917 | -5/Archives | Build established: Scavenger-Tank 24667 | -5/Archives | Entered Hub_04(d) 24667 | -5/Hub_04(d) | Accompanied by 11 allies 24674 | -5/Hub_04(d) | Discovered new exit (range 23) 24877 | -5/Hub_04(d) | Lost 6 allies 25459 | -5/Hub_04(d) | Network Hub disabled 25549 | -5/Hub_04(d) | Network Hub disabled 25735 | -5/Hub_04(d) | Entered Factory 25735 | -4/Factory | Accompanied by 2 allies 25735 | -4/Factory | Evolved 2 slots: Propulsion x2 25750 | -4/Factory | Joined by bewildered Wizard 25750 | -4/Factory | Joined by bewildered Wizard 25750 | -4/Factory | Joined by bewildered Wizard 25871 | -4/Factory | Fabricated Cmb. Linear Gravjet (x2) 25920 | -4/Factory | Joined by bewildered Wizard 25975 | -4/Factory | Joined by bewildered Wizard 26071 | -4/Factory | Joined by bewildered Wizard 26071 | -4/Factory | Joined by bewildered Wizard 26149 | -4/Factory | Loaded intel: 8 recycling unit locations 26185 | -4/Factory | Joined by bewildered Wizard 26220 | -4/Factory | Lost 3 allies 26230 | -4/Factory | Joined by bewildered Wizard 26231 | -4/Factory | Joined by bewildered Wizard 26340 | -4/Factory | Lost 4 allies 26343 | -4/Factory | Fabricated M-28 Smith (x1) 26476 | -4/Factory | Lost 3 allies 26990 | -4/Factory | Spotted B-86 Titan 26992 | -4/Factory | Sucked down chute 26992 | -4/Factory | Entered Waste 26992 | -4/Waste | The area was eerily silent 26992 | -4/Waste | Met up with 1 ally sucked down the chute earlier 27235 | -4/Waste | Found Prototype Reactor 27235 | -4/Waste | Identified Vortex Chain Reactor 27247 | -4/Waste | Discovered new exit (range 15) 27270 | -4/Waste | Found Prototype Protection 27270 | -4/Waste | Identified Centrium Heavy Armor Plating 27440 | -4/Waste | Entered Factory 27440 | -4/Factory | Accompanied by 1 ally 27452 | -4/Factory | Discovered new exit (range 12) 27464 | -4/Factory | Joined by bewildered Wizard 27464 | -4/Factory | Joined by bewildered Wizard 27566 | -4/Factory | Joined by bewildered Wizard 27567 | -4/Factory | Joined by bewildered Wizard 27644 | -4/Factory | Repaired Broken Centrium Heavy Treads 27760 | -4/Factory | Joined by bewildered Wizard 27780 | -4/Factory | Loaded intel: 8 recycling unit locations 27971 | -4/Factory | Joined by bewildered Wizard 27982 | -4/Factory | Joined by bewildered Wizard 28073 | -4/Factory | Joined by bewildered Wizard 28238 | -4/Factory | Discovered new exit (range 24) 28265 | -4/Factory | Lost 4 allies 28332 | -4/Factory | Joined by bewildered Wizard 28333 | -4/Factory | Joined by bewildered Wizard 28556 | -4/Factory | Discovered new exit (range 30) 28781 | -4/Factory | Identified exit to Upper Caves 28781 | -4/Factory | Identified exit to Armory 29048 | -4/Factory | Fabricated B-60 Warrior (x3) 29167 | -4/Factory | Lost 3 allies 29417 | -4/Factory | Lost 3 allies 29441 | -4/Factory | Fabricated Biometal Heavy Treads (x1) 29690 | -4/Factory | First assault squad dispatched 29861 | -4/Factory | Destroyed 8 combat bots 29870 | -4/Factory | Lost 4 parts (1n1u2w) 29913 | -4/Factory | System corruption reached 10% 29967 | -4/Factory | Lost 9 parts (2p2n3u2w) 29975 | -4/Factory | Destroyed 8 combat bots 30206 | -4/Factory | Entered Upper Caves 30237 | -4/Upper Caves | Joined by bewildered Wizard 30237 | -4/Upper Caves | Joined by bewildered Wizard 30239 | -4/Upper Caves | Joined by bewildered Wizard 30295 | -4/Upper Caves | Joined by bewildered Wizard 30297 | -4/Upper Caves | Joined by bewildered Wizard 30359 | -4/Upper Caves | Learned Research interactive machine intel 30372 | -4/Upper Caves | Spotted B-86 Titan 30418 | -4/Upper Caves | Joined by bewildered Wizard 30419 | -4/Upper Caves | Joined by bewildered Wizard 30420 | -4/Upper Caves | Joined by bewildered Wizard 30605 | -4/Upper Caves | Learned location of 2 exits from Research 30636 | -4/Upper Caves | Discovered new exit (range 30) 30749 | -4/Upper Caves | Lost 3 allies 30980 | -4/Upper Caves | Attracted the attention of an 0b10 checkpoint 31079 | -4/Upper Caves | Learned 8 Research zone layouts 31322 | -4/Upper Caves | Entered another Upper Caves area 31331 | -4/Upper Caves | Discovered new exit (range 7) 31396 | -4/Upper Caves | Joined by bewildered Wizard 31397 | -4/Upper Caves | Joined by bewildered Wizard 31440 | -4/Upper Caves | Joined by bewildered Wizard 31441 | -4/Upper Caves | Joined by bewildered Wizard 31735 | -4/Upper Caves | Joined by bewildered Wizard 32036 | -4/Upper Caves | Discovered new exit (range 30) 32140 | -4/Upper Caves | Attracted the attention of an 0b10 checkpoint 32154 | -4/Upper Caves | Joined by bewildered Wizard 32156 | -4/Upper Caves | Joined by bewildered Wizard 32157 | -4/Upper Caves | Joined by bewildered Wizard 32175 | -4/Upper Caves | Lost 3 allies 32196 | -4/Upper Caves | Learned location of 1 exit from Research 32292 | -4/Upper Caves | Entered Zhirov 32292 | -4/Zhirov | Accompanied by 4 allies 32294 | -4/Zhirov | Discovered new exit (range 3) 32323 | -4/Zhirov | Met Zhirov 32352 | -4/Zhirov | Learned location of Quarantine (-2) 32352 | -4/Zhirov | Learned location of Testing (-3) 32352 | -4/Zhirov | Learned location of Command (-1) 32368 | -4/Zhirov | Zhirov requested help retrieving the SGEMP Prototype 32400 | -4/Zhirov | Found Alien Artifact 32400 | -4/Zhirov | Identified Integrated Reactor 32400 | -4/Zhirov | Installed Integrated Reactor, increased core energy generation (+10) 32467 | -4/Zhirov | Found Alien Artifact 32543 | -4/Zhirov | Entered Proximity Caves 32543 | -3/Proximity Caves | Accompanied by 4 allies 33288 | -3/Proximity Caves | Found Alien Artifact 33356 | -3/Proximity Caves | Discovered new exit (range 12) 33596 | -3/Proximity Caves | Joined by bewildered Wizard 33596 | -3/Proximity Caves | Joined by bewildered Wizard 33678 | -3/Proximity Caves | Entered Research 33678 | -3/Research | Accompanied by 4 allies 33678 | -3/Research | Evolved 2 slots: Propulsion x1, Utility x1 33679 | -3/Research | Identified exit to Testing 33679 | -3/Research | Identified exit to Research 33681 | -3/Research | Loaded intel: 46 interactive machine locations 33682 | -3/Research | Loaded intel: 4 garrison access locations 33878 | -3/Research | Revision forces began assault on 0b10 33920 | -3/Research | Loaded intel: 5 recycling unit locations 33955 | -3/Research | Joined by bewildered Wizard 33978 | -3/Research | Met up with Revision 17++ 34250 | -3/Research | Lost 4 allies 34284 | -3/Research | Joined by bewildered Wizard 34378 | -3/Research | Research terminal network offline 34456 | -3/Research | Joined by bewildered Wizard 34546 | -3/Research | Found Fusion Bomb Launcher 34604 | -3/Research | Spotted B-86 Titan 34670 | -3/Research | Lost 4 allies 34704 | -3/Research | Joined by bewildered Wizard 34706 | -3/Research | Joined by bewildered Wizard 34759 | -3/Research | Found Centrium Heavy Armor Plating 34852 | -3/Research | Found Unknown Device 34852 | -3/Research | Identified Quantum Capacitor 34868 | -3/Research | Joined by bewildered Wizard 35016 | -3/Research | Entered Testing 35016 | -3/Testing | Accompanied by 3 allies 35163 | -3/Testing | Found Prototype Launcher 35179 | -3/Testing | Identified Dimensional Node Initializer 35179 | -3/Testing | Identified Transdimensional Reconstructor 35179 | -3/Testing | Identified Hellfire Missile Launcher 35268 | -3/Testing | Repaired Centrium Medium Armor Plating 35273 | -3/Testing | Build established: Gunner 35605 | -3/Testing | Attached Powered Cannon, gained temporary slot: Power 35607 | -3/Testing | Found Prototype Energy Cannon 35610 | -3/Testing | Found Prototype Energy Cannon 35668 | -3/Testing | Identified Imp. Potential Cannon (x2) 35685 | -3/Testing | Found Prototype Energy Gun 35685 | -3/Testing | Identified Hyp. EM Gauss Rifle 35772 | -3/Testing | Found Prototype Launcher 35773 | -3/Testing | Identified Z-bomb Delivery System 35818 | -3/Testing | Found Prototype Ballistic Cannon 35845 | -3/Testing | Identified Omega Cannon 35972 | -3/Testing | Repaired Adv. Force Field 36035 | -3/Testing | System corruption reached 10% 36070 | -3/Testing | Found Prototype Energy Gun 36070 | -3/Testing | Identified Warp Gun 36163 | -3/Testing | Found Prototype Device 36303 | -3/Testing | Identified Exp. Thermal Defense Suite 36321 | -3/Testing | Discovered exit to Research (range 14) 36355 | -3/Testing | Entered Research 36355 | -2/Research | Evolved 2 slots: Power x1, Utility x1 36356 | -2/Research | Identified exit to Quarantine 36381 | -2/Research | Loaded intel: 5 recycling unit locations 36620 | -2/Research | Joined by bewildered Wizard 36620 | -2/Research | Joined by bewildered Wizard 36620 | -2/Research | Joined by bewildered Wizard 36628 | -2/Research | Garrison activated, responded to threat 36639 | -2/Research | Joined by bewildered Wizard 36665 | -2/Research | Build established: Generator-Gunner 36713 | -2/Research | Lost 4 allies 36745 | -2/Research | Found Prototype Device 36787 | -2/Research | Repaired Centrium Medium Armor Plating 36818 | -2/Research | Identified Exp. Actuator Array 36902 | -2/Research | Found Prototype Launcher 36916 | -2/Research | Identified Point Singularity Launcher 36950 | -2/Research | Spotted B-90 Cyclops 37264 | -2/Research | Spotted B-90 Cyclops 37265 | -2/Research | Spotted B-90 Cyclops 37304 | -2/Research | Entered Quarantine 37345 | -2/Quarantine | Found Alien Artifact 37345 | -2/Quarantine | Identified Phase Redirector 37358 | -2/Quarantine | Cryocooling Duct disabled 37373 | -2/Quarantine | Ambient heat levels rising (+20) 37373 | -2/Quarantine | Non-combat units ordered to evacuate 37433 | -2/Quarantine | Found Alien Artifact 37475 | -2/Quarantine | Discovered new exit (range 29) 37510 | -2/Quarantine | Build established: Scavenger-Mutant 37561 | -2/Quarantine | Found Alien Reactor 37781 | -2/Quarantine | Identified Subatomic Replicator 37790 | -2/Quarantine | Found Alien Artifact 37837 | -2/Quarantine | Build established: Scavenger-Skirmisher 37852 | -2/Quarantine | Identified Terrabomb 37852 | -2/Quarantine | Identified Matter Drive 37862 | -2/Quarantine | Used Subatomic Replicator to create Alien Artifact 37876 | -2/Quarantine | Identified Supercharged TR 38118 | -2/Quarantine | Repaired Broken Enh. Biometal Leg? 38122 | -2/Quarantine | Repaired Broken Exp. Myomer Leg 38156 | -2/Quarantine | Found Spectral Analyzer 38315 | -2/Quarantine | Spotted Fortress 38391 | -2/Quarantine | Discovered new exit (range 6) 38391 | -2/Quarantine | Discovered new exit (range 6) 38584 | -2/Quarantine | Entered Protoforge 38625 | -2/Protoforge | Build established: Tank 38665 | -2/Protoforge | Superfortress began startup sequence 38678 | -2/Protoforge | Spotted Hotshot 38868 | -2/Protoforge | Spotted Hotshot 38868 | -2/Protoforge | Spotted Hotshot 38917 | -2/Protoforge | Destroyed Hotshot 38939 | -2/Protoforge | Lost 4 parts (2p1u1w) 39004 | -2/Protoforge | Spotted Hotshot 39004 | -2/Protoforge | Spotted Hotshot 39020 | -2/Protoforge | Destroyed Hotshot 39047 | -2/Protoforge | Lost 3 parts (1n1u1w) 39067 | -2/Protoforge | Destroyed Hotshot 39069 | -2/Protoforge | Destroyed Hotshot 39084 | -2/Protoforge | First assault squad dispatched 39122 | -2/Protoforge | Spotted Hotshot 39122 | -2/Protoforge | Spotted Hotshot 39252 | -2/Protoforge | System corruption reached 10% 39275 | -2/Protoforge | Destroyed 7 combat bots 39350 | -2/Protoforge | Warped through subspace 39391 | -2/Protoforge | Spotted EXE-6 39438 | -2/Protoforge | Core integrity fell below 50% 39438 | -2/Protoforge | Spotted AP7-3 39438 | -2/Protoforge | Spotted AP7-3 39469 | -2/Protoforge | Spotted EXE-6 39469 | -2/Protoforge | Spotted EXE-6 39491 | -2/Protoforge | Released all parts (11) 39495 | -2/Protoforge | Core integrity fell below 20% 39506 | -2/Protoforge | UFD initiated attack on Protoforge 39506 | -2/Protoforge | Loaded intel: 3 recycling unit locations 39521 | -2/Protoforge | Lost 9 parts (2p5n1u1w) 39547 | -2/Protoforge | Optimus greeted in Protoforge 39551 | -2/Protoforge | Found Prototype Processor 39551 | -2/Protoforge | Identified Exp. Core Analyzer 39554 | -2/Protoforge | Found Prototype Ballistic Gun 39560 | -2/Protoforge | Found Prototype Ballistic Gun 39560 | -2/Protoforge | Identified Cep. XC Strikerail (x2) 39574 | -2/Protoforge | Lost 13 allies 39579 | -2/Protoforge | Found Prototype Device 39579 | -2/Protoforge | Identified Exp. ECM Suite 39581 | -2/Protoforge | Spotted Decapitator 39586 | -2/Protoforge | Spotted Decapitator 39588 | -2/Protoforge | Found Prototype Processor 39588 | -2/Protoforge | Identified Exp. Target Analyzer 39615 | -2/Protoforge | Found Prototype Processor 39615 | -2/Protoforge | Identified Exp. Armor Integrity Analyzer 39635 | -2/Protoforge | Lost 3 allies 39659 | -2/Protoforge | Found Prototype Device 39659 | -2/Protoforge | Identified Exp. Kinecellerator 39665 | -2/Protoforge | Found Cep. XC Strikerail 39667 | -2/Protoforge | Found Cep. XC Strikerail 39677 | -2/Protoforge | Met 7R-MNS 39730 | -2/Protoforge | Spotted Striker 39752 | -2/Protoforge | Spotted Hotshot 39769 | -2/Protoforge | Spotted Hotshot 39770 | -2/Protoforge | Spotted Hotshot 39770 | -2/Protoforge | Spotted Hotshot 39787 | -2/Protoforge | Spotted Executioner 39788 | -2/Protoforge | Spotted Striker 39857 | -2/Protoforge | Build established: Scavenger-Gunner 39874 | -2/Protoforge | P-80 Master assimilated allied 02F56-D 39884 | -2/Protoforge | UFD reported confirmed Drillbomb installation 40064 | -2/Protoforge | Spotted Executioner 40069 | -2/Protoforge | Triborg destroyed during the operation 40069 | -2/Protoforge | Optimus emerged from Triborg 40122 | -2/Protoforge | Found UFD Drillbomb 40138 | -2/Protoforge | Spotted Immortal 40145 | -2/Protoforge | Spotted Immortal 40226 | -2/Protoforge | Spotted Executioner 40244 | -2/Protoforge | Spotted Immortal 40245 | -2/Protoforge | Spotted Immortal 40247 | -2/Protoforge | Spotted Immortal 40252 | -2/Protoforge | Destroyed Immortal 40277 | -2/Protoforge | Destroyed Immortal 40290 | -2/Protoforge | Lost 12 allies 40518 | -2/Protoforge | Lost 7 allies 40565 | -2/Protoforge | Spotted Overlord 40578 | -2/Protoforge | Spotted Executioner 40579 | -2/Protoforge | Spotted Striker 40600 | -2/Protoforge | Spotted Striker 40604 | -2/Protoforge | Spotted Executioner 40608 | -2/Protoforge | Spotted Striker 40618 | -2/Protoforge | Spotted Striker 40654 | -2/Protoforge | Lost 7 allies 40669 | -2/Protoforge | P-80 Master assimilated allied 6X-ELO(E) 40692 | -2/Protoforge | Found Cep. XC Strikerail 40692 | -2/Protoforge | Spotted Striker 40706 | -2/Protoforge | Spotted Striker 40708 | -2/Protoforge | Spotted Striker 40709 | -2/Protoforge | Destroyed Striker 40713 | -2/Protoforge | Spotted Striker 40714 | -2/Protoforge | Spotted Striker 40769 | -2/Protoforge | Lost 3 allies 40786 | -2/Protoforge | Spotted Striker 40819 | -2/Protoforge | Spotted Hotshot 40824 | -2/Protoforge | Destroyed Hotshot 40827 | -2/Protoforge | Spotted Executioner 40830 | -2/Protoforge | Spotted Striker 40861 | -2/Protoforge | Lost 3 allies 40964 | -2/Protoforge | UFD reported confirmed Drillbomb installation 41031 | -2/Protoforge | Spotted Executioner 41042 | -2/Protoforge | Spotted Striker 41043 | -2/Protoforge | Spotted Striker 41048 | -2/Protoforge | Spotted Striker 41066 | -2/Protoforge | Spotted Striker 41068 | -2/Protoforge | Destroyed Striker 41076 | -2/Protoforge | Destroyed Striker 41105 | -2/Protoforge | Lost 9 allies 41135 | -2/Protoforge | Spotted Striker 41141 | -2/Protoforge | Spotted Striker 41143 | -2/Protoforge | Spotted Striker 41153 | -2/Protoforge | Destroyed Striker 41155 | -2/Protoforge | Destroyed Striker 41158 | -2/Protoforge | Destroyed Striker 41162 | -2/Protoforge | Spotted Executioner 41210 | -2/Protoforge | Spotted Hotshot 41210 | -2/Protoforge | Spotted Hotshot 41215 | -2/Protoforge | Spotted Hotshot 41256 | -2/Protoforge | Spotted Hotshot 41261 | -2/Protoforge | Lost 11 allies 41266 | -2/Protoforge | Spotted Hotshot 41268 | -2/Protoforge | Spotted Hotshot 41270 | -2/Protoforge | Spotted Hotshot 41304 | -2/Protoforge | Spotted Executioner 41304 | -2/Protoforge | Destroyed Executioner 41310 | -2/Protoforge | Spotted Striker 41320 | -2/Protoforge | Destroyed Hotshot 41355 | -2/Protoforge | Lost 9 allies 41509 | -2/Protoforge | Lost 5 allies 41529 | -2/Protoforge | Spotted Hotshot 41530 | -2/Protoforge | Spotted Hotshot 41536 | -2/Protoforge | Spotted Hotshot 41544 | -2/Protoforge | Destroyed Hotshot 41569 | -2/Protoforge | Spotted Decapitator 41571 | -2/Protoforge | Spotted Decapitator 41579 | -2/Protoforge | Destroyed Decapitator 41579 | -2/Protoforge | Spotted Decapitator 41581 | -2/Protoforge | Lost 4 allies 41582 | -2/Protoforge | Destroyed Decapitator 41586 | -2/Protoforge | Destroyed Decapitator 41611 | -2/Protoforge | Spotted Striker 41614 | -2/Protoforge | Spotted Striker 41626 | -2/Protoforge | Destroyed Striker 41655 | -2/Protoforge | Spotted Striker 41655 | -2/Protoforge | Spotted Executioner 41716 | -2/Protoforge | Spotted Executioner 41719 | -2/Protoforge | Spotted Striker 41720 | -2/Protoforge | Spotted Striker 41729 | -2/Protoforge | Destroyed Striker 41829 | -2/Protoforge | Spotted Executioner 41870 | -2/Protoforge | Spotted Striker 41884 | -2/Protoforge | Spotted Executioner 41903 | -2/Protoforge | Spotted Striker 41911 | -2/Protoforge | Destroyed Striker 41939 | -2/Protoforge | Lost 13 allies 41992 | -2/Protoforge | Spotted Striker 42051 | -2/Protoforge | Spotted Striker 42054 | -2/Protoforge | Spotted Striker 42133 | -2/Protoforge | Spotted Striker 42135 | -2/Protoforge | Spotted Striker 42143 | -2/Protoforge | Destroyed Striker 42152 | -2/Protoforge | Spotted Striker 42215 | -2/Protoforge | Found Prototype Device 42217 | -2/Protoforge | Identified Adv. Kinecellerator 42221 | -2/Protoforge | Spotted Striker 42251 | -2/Protoforge | Spotted Executioner 42273 | -2/Protoforge | Spotted Striker 42285 | -2/Protoforge | Spotted Striker 42293 | -2/Protoforge | Spotted Decapitator 42330 | -2/Protoforge | Lost 12 allies 42342 | -2/Protoforge | Spotted Decapitator 42344 | -2/Protoforge | Spotted Decapitator 42345 | -2/Protoforge | Spotted Decapitator 42345 | -2/Protoforge | Spotted Decapitator 42350 | -2/Protoforge | P-80 Master assimilated allied 02FHI-D 42393 | -2/Protoforge | Spotted Striker 42411 | -2/Protoforge | Lost 5 allies 42537 | -2/Protoforge | Spotted Executioner 42562 | -2/Protoforge | Spotted Striker 42562 | -2/Protoforge | Spotted Executioner 42581 | -2/Protoforge | Destroyed Striker 42606 | -2/Protoforge | Destroyed Executioner 42702 | -2/Protoforge | Spotted Executioner 42705 | -2/Protoforge | Destroyed Executioner 42747 | -2/Protoforge | Lost 3 allies 42947 | -2/Protoforge | Lost 3 allies 43046 | -2/Protoforge | P-80 Master assimilated allied 4D-M49(E) 43076 | -2/Protoforge | Spotted Executioner 43082 | -2/Protoforge | Spotted Striker 43093 | -2/Protoforge | Spotted Striker 43102 | -2/Protoforge | Spotted Striker 43112 | -2/Protoforge | Spotted Striker 43125 | -2/Protoforge | Spotted Striker 43169 | -2/Protoforge | Lost 8 allies 43170 | -2/Protoforge | Spotted Executioner 43171 | -2/Protoforge | Destroyed Executioner 43186 | -2/Protoforge | Spotted Executioner 43219 | -2/Protoforge | Lost 4 allies 43272 | -2/Protoforge | Spotted Executioner 43277 | -2/Protoforge | Spotted Striker 43344 | -2/Protoforge | Lost 4 allies 43392 | -2/Protoforge | Spotted Striker 43395 | -2/Protoforge | Found Prototype Protection 43395 | -2/Protoforge | Spotted Striker 43396 | -2/Protoforge | Identified Cep. Core Shell 43398 | -2/Protoforge | Found Cep. Core Shell 43421 | -2/Protoforge | Spotted Striker 43427 | -2/Protoforge | Spotted Executioner 43486 | -2/Protoforge | Lost 5 allies 43511 | -2/Protoforge | Spotted SKR-2 43524 | -2/Protoforge | Spotted Immortal 43525 | -2/Protoforge | Spotted Immortal 43527 | -2/Protoforge | Destroyed SKR-2 43529 | -2/Protoforge | Spotted Immortal 43553 | -2/Protoforge | Spotted Striker 43570 | -2/Protoforge | Destroyed Striker 43583 | -2/Protoforge | Found Prototype Device 43584 | -2/Protoforge | Identified Exp. Cloaking Device 43597 | -2/Protoforge | Spotted Striker 43607 | -2/Protoforge | Spotted Executioner 43608 | -2/Protoforge | Spotted Striker 43662 | -2/Protoforge | Lost 8 allies 43677 | -2/Protoforge | Spotted Immortal 43678 | -2/Protoforge | Spotted Immortal 43691 | -2/Protoforge | Destroyed Immortal 43715 | -2/Protoforge | Destroyed Immortal 43715 | -2/Protoforge | Destroyed 02F75-K 43721 | -2/Protoforge | Spotted Hotshot 43722 | -2/Protoforge | Spotted Striker 43724 | -2/Protoforge | Destroyed Striker 43725 | -2/Protoforge | Spotted Hotshot 43726 | -2/Protoforge | Destroyed Hotshot 43728 | -2/Protoforge | Spotted Striker 43733 | -2/Protoforge | Destroyed Striker 43743 | -2/Protoforge | Spotted Striker 43758 | -2/Protoforge | Spotted Hotshot 43769 | -2/Protoforge | Spotted Hotshot 43769 | -2/Protoforge | Spotted Hotshot 43782 | -2/Protoforge | Spotted Executioner 43782 | -2/Protoforge | Spotted Striker 43799 | -2/Protoforge | Destroyed Striker 43861 | -2/Protoforge | Lost 13 allies 43878 | -2/Protoforge | Spotted Executioner 43912 | -2/Protoforge | Spotted Hotshot 43913 | -2/Protoforge | Spotted Hotshot 43917 | -2/Protoforge | Spotted Hotshot 43931 | -2/Protoforge | Destroyed Hotshot 43942 | -2/Protoforge | Destroyed Hotshot 43963 | -2/Protoforge | Lost 3 allies 43986 | -2/Protoforge | Installed UFD Drillbomb at designated target 43986 | -2/Protoforge | UFD reported confirmed Drillbomb installation 44023 | -2/Protoforge | UFD reported confirmed Drillbomb installation 44026 | -2/Protoforge | Spotted Executioner 44041 | -2/Protoforge | Spotted Striker 44068 | -2/Protoforge | Spotted Striker 44071 | -2/Protoforge | Destroyed Striker 44073 | -2/Protoforge | Spotted Striker 44098 | -2/Protoforge | Spotted Striker 44100 | -2/Protoforge | Destroyed Striker 44107 | -2/Protoforge | Spotted Striker 44129 | -2/Protoforge | Spotted Hotshot 44130 | -2/Protoforge | Spotted Hotshot 44151 | -2/Protoforge | Found UFD Drillbomb 44161 | -2/Protoforge | Spotted Executioner 44162 | -2/Protoforge | Spotted Striker 44166 | -2/Protoforge | Spotted Hotshot 44194 | -2/Protoforge | Destroyed Hotshot 44200 | -2/Protoforge | Destroyed Hotshot 44266 | -2/Protoforge | Lost 7 allies 44268 | -2/Protoforge | UFD reported confirmed Drillbomb installation 44279 | -2/Protoforge | Spotted Hotshot 44280 | -2/Protoforge | Destroyed 10 combat bots 44281 | -2/Protoforge | Spotted Striker 44286 | -2/Protoforge | Destroyed Hotshot 44288 | -2/Protoforge | Spotted Hotshot 44289 | -2/Protoforge | Spotted Hotshot 44294 | -2/Protoforge | Destroyed Hotshot 44294 | -2/Protoforge | Spotted Hotshot 44296 | -2/Protoforge | Spotted Hotshot 44300 | -2/Protoforge | Spotted Hotshot 44303 | -2/Protoforge | Destroyed Hotshot 44338 | -2/Protoforge | Spotted Executioner 44339 | -2/Protoforge | Spotted Executioner 44402 | -2/Protoforge | Lost 7 allies 44472 | -2/Protoforge | Spotted Hotshot 44476 | -2/Protoforge | Spotted Hotshot 44477 | -2/Protoforge | Spotted Hotshot 44482 | -2/Protoforge | Destroyed Hotshot 44496 | -2/Protoforge | Spotted Executioner 44497 | -2/Protoforge | Spotted Striker 44497 | -2/Protoforge | Spotted Striker 44498 | -2/Protoforge | Spotted Striker 44499 | -2/Protoforge | Destroyed Striker 44506 | -2/Protoforge | Destroyed Striker 44540 | -2/Protoforge | Destroyed 8 combat bots 44562 | -2/Protoforge | UFD reported confirmed Drillbomb installation 44564 | -2/Protoforge | Spotted Striker 44564 | -2/Protoforge | Spotted Striker 44564 | -2/Protoforge | Spotted Striker 44586 | -2/Protoforge | Spotted Striker 44587 | -2/Protoforge | Spotted Immortal 44588 | -2/Protoforge | Spotted Immortal 44590 | -2/Protoforge | Spotted Executioner 44630 | -2/Protoforge | Spotted 02F89-K 44727 | -2/Protoforge | Spotted Executioner 44748 | -2/Protoforge | Spotted Executioner 44803 | -2/Protoforge | Spotted Striker 44807 | -2/Protoforge | Spotted Executioner 44807 | -2/Protoforge | Destroyed Striker 44807 | -2/Protoforge | Spotted Striker 44813 | -2/Protoforge | Spotted Striker 44814 | -2/Protoforge | P-80 Master assimilated allied 02FPH-D 44833 | -2/Protoforge | Spotted Striker 44835 | -2/Protoforge | Destroyed Striker 44842 | -2/Protoforge | Spotted Executioner 44846 | -2/Protoforge | Spotted Hotshot 44846 | -2/Protoforge | Spotted Hotshot 44846 | -2/Protoforge | Spotted Hotshot 44878 | -2/Protoforge | Lost 18 allies 44887 | -2/Protoforge | Spotted Striker 44888 | -2/Protoforge | Destroyed Striker 44981 | -2/Protoforge | Spotted Executioner 45148 | -2/Protoforge | UFD reported confirmed Drillbomb installation 45229 | -2/Protoforge | Spotted Striker 45230 | -2/Protoforge | Spotted Striker 45234 | -2/Protoforge | Destroyed Striker 45269 | -2/Protoforge | Spotted Striker 45282 | -2/Protoforge | Spotted Striker 45285 | -2/Protoforge | Destroyed Striker 45339 | -2/Protoforge | Lost 8 allies 45364 | -2/Protoforge | Spotted Striker 45367 | -2/Protoforge | Spotted Striker 45367 | -2/Protoforge | Destroyed Striker 45373 | -2/Protoforge | Destroyed Striker 45374 | -2/Protoforge | Spotted Striker 45376 | -2/Protoforge | Spotted Striker 45381 | -2/Protoforge | Destroyed Striker 45389 | -2/Protoforge | Destroyed Striker 45420 | -2/Protoforge | Lost 5 allies 45420 | -2/Protoforge | Spotted Executioner 45428 | -2/Protoforge | Spotted Executioner 45486 | -2/Protoforge | Lost 5 allies 45499 | -2/Protoforge | Spotted Striker 45585 | -2/Protoforge | Installed UFD Drillbomb at designated target 45585 | -2/Protoforge | UFD reported confirmed Drillbomb installation 45706 | -2/Protoforge | Found UFD Drillbomb 45760 | -2/Protoforge | Spotted Executioner 45770 | -2/Protoforge | Spotted Executioner 45789 | -2/Protoforge | Spotted Striker 45792 | -2/Protoforge | Destroyed Striker 45855 | -2/Protoforge | Lost 7 allies 45885 | -2/Protoforge | Spotted Executioner 45890 | -2/Protoforge | Spotted Striker 45891 | -2/Protoforge | Spotted Executioner 45892 | -2/Protoforge | Destroyed Executioner 45895 | -2/Protoforge | Spotted Striker 45908 | -2/Protoforge | Spotted Executioner 45912 | -2/Protoforge | Spotted Executioner 45963 | -2/Protoforge | Lost 17 allies 46002 | -2/Protoforge | Spotted Striker 46060 | -2/Protoforge | Spotted Striker 46062 | -2/Protoforge | Destroyed 7 combat bots 46063 | -2/Protoforge | Lost 10 allies 46080 | -2/Protoforge | Spotted Executioner 46084 | -2/Protoforge | Spotted Striker 46088 | -2/Protoforge | Destroyed Striker 46090 | -2/Protoforge | Spotted Hotshot 46152 | -2/Protoforge | Spotted Striker 46154 | -2/Protoforge | Spotted Striker 46157 | -2/Protoforge | Destroyed Striker 46166 | -2/Protoforge | Spotted Hotshot 46168 | -2/Protoforge | Destroyed Hotshot 46335 | -2/Protoforge | Spotted Decapitator 46336 | -2/Protoforge | Spotted Decapitator 46337 | -2/Protoforge | Spotted Decapitator 46338 | -2/Protoforge | Spotted Decapitator 46344 | -2/Protoforge | Destroyed Decapitator 46348 | -2/Protoforge | Destroyed Decapitator 46355 | -2/Protoforge | Destroyed Decapitator 46391 | -2/Protoforge | Lost 9 allies 46391 | -2/Protoforge | Spotted Striker 46392 | -2/Protoforge | Spotted Executioner 46404 | -2/Protoforge | Spotted Striker 46423 | -2/Protoforge | Spotted Executioner 46436 | -2/Protoforge | Spotted Executioner 46447 | -2/Protoforge | Spotted Hotshot 46451 | -2/Protoforge | Spotted Hotshot 46451 | -2/Protoforge | Spotted Hotshot 46457 | -2/Protoforge | Spotted Striker 46464 | -2/Protoforge | Destroyed Striker 46469 | -2/Protoforge | Spotted Executioner 46522 | -2/Protoforge | Lost 19 allies 46545 | -2/Protoforge | Spotted Executioner 46594 | -2/Protoforge | Spotted Striker 46596 | -2/Protoforge | Spotted Striker 46604 | -2/Protoforge | Spotted Striker 46659 | -2/Protoforge | Destroyed Striker 46703 | -2/Protoforge | Spotted Striker 46707 | -2/Protoforge | Lost 4 allies 46714 | -2/Protoforge | Spotted Striker 46716 | -2/Protoforge | Spotted Executioner 46748 | -2/Protoforge | Spotted Striker 46749 | -2/Protoforge | Destroyed Striker 46770 | -2/Protoforge | Destroyed 7 combat bots 46801 | -2/Protoforge | Spotted Striker 46805 | -2/Protoforge | Spotted Striker 46810 | -2/Protoforge | Spotted Executioner 46822 | -2/Protoforge | Spotted Executioner 46834 | -2/Protoforge | Lost 15 allies 46883 | -2/Protoforge | Spotted Executioner 46883 | -2/Protoforge | Spotted SKR-2 46939 | -2/Protoforge | Spotted Striker 46940 | -2/Protoforge | Spotted Executioner 46962 | -2/Protoforge | Destroyed SKR-2 47020 | -2/Protoforge | Found Prototype Processor 47026 | -2/Protoforge | Identified Exp. Targeting Computer 47086 | -2/Protoforge | Spotted Striker 47088 | -2/Protoforge | Destroyed Striker 47154 | -2/Protoforge | Spotted Striker 47161 | -2/Protoforge | Spotted Hotshot 47161 | -2/Protoforge | Spotted Executioner 47167 | -2/Protoforge | Spotted Hotshot 47167 | -2/Protoforge | Destroyed Executioner 47168 | -2/Protoforge | Spotted Hotshot 47170 | -2/Protoforge | Destroyed Hotshot 47192 | -2/Protoforge | Destroyed Hotshot 47196 | -2/Protoforge | Spotted Hotshot 47197 | -2/Protoforge | Destroyed Hotshot 47199 | -2/Protoforge | Spotted Striker 47201 | -2/Protoforge | Spotted Striker 47218 | -2/Protoforge | Destroyed 8 combat bots 47238 | -2/Protoforge | Lost 14 allies 47287 | -2/Protoforge | Spotted Striker 47289 | -2/Protoforge | Spotted Executioner 47299 | -2/Protoforge | Spotted Striker 47304 | -2/Protoforge | Spotted Striker 47307 | -2/Protoforge | Spotted Striker 47308 | -2/Protoforge | Destroyed Striker 47318 | -2/Protoforge | Destroyed by Striker with Plasma Lance Last Messages --------------- 47311_ Slug penetrates Striker. 47311_ Slug penetrates Reinforced Barrier. 47311_ Acquired 49 matter. 47312_ Slug penetrates Striker. 47314_ Penetrated by Slug. 47314_ N-04 Retriever collects Mak. Thermal Plating. 47314_ Striker knocked back. 47314_ P-80 Master fails to hack 02FZB-D. 47315_ Slug penetrates 02FBN-K. 47315_ Slug penetrates Reinforced Barrier. 47316_ Slug penetrates S-43 Plague. 47316_ S-43 Plague suffers critical hit (Destroy). 47317_ Slug penetrates 02FBN-K. 47317_ Slug penetrates Striker. 47317_ Slug penetrates Reinforced Barrier. 47317_ Destroyed Lgt. Quantum Reactor. 47317_ Striker knocked back. 47317_ Slug penetrates Striker. 47317_ Striker suffers critical hit (Destroy). 47318_ N-04 Retriever collects Lgt. Antimatter Reactor. Map ----- +----------------------------------------------------+ | ##"###"###"###??# # = % %% %%% %%%%%%[%] | | ## "" T "" ## ### # " % " % % % !%%%%% %! | | ## " ## # # "%% % %%%[% %%% %% | | ## # # # " % %"!%%% %% % %%%%%% % | | " " # # " "% %%=% % %%% % !%" | | #[ " # ]! % "%%%%%% % %% %%%% | | ! ="! !#*!== %% % %%%%%%%% % %%%% | | " % =!!=! #**%% %% %%%%%%%%%%%% %%%%"% | | " ! !" |=*]#%%!!]% %%%%%% %%%%%&%%%%%%%% % | | """"% %!]%%%""% %#%%&=!=%%%%% p[*%%%%%%%%%% % | | % %% %%%%%%%%% %%%%%%!%%%%![ %s%%%=%%% %% % | | %%%%% %%%%%%%%%%%%%% %%%%%%%==%%[%!%=%%%%% %%=%% | | % %%%% %%%%%%%%%%%%%%m%%%%n%!*%[%=%%%!% %%% =% ! | | %%%[%%%%%%% % %%%%#%%%%&%%% %%!%!=%%!%% %%% %%%% | | %%[ %%%%%% % && #%%%%%%%%!=[%!=%!*%%%%%%% %%! % | | %%%=%% % =] &#%%%%%%%%%%%%/!%%]* %%&%%& %% % | | %% %%% %*** & # %%%%%%%=%*%%%!!!% %%%%%% % %%% | | %% % %% [#%%%%%%%%% %=!%!=* %%%%%%""""" | | % % %%% " #%%%%%%%%% % =%*% %%%%%"""""""" | | %% %%% "% # #[%%%%%%%%% %/% %%%""""""""" | | %% ""%" ### #%%%%% %%%%%%!%=% %%%%"""""""""" | | %% %%% # #%%*% %%%%%%%%%%%%%%""""""""""" | | % % %" #%=!%%%"%%%%%%%%%%%%"""""""""""" | | % %%% % "[ ######%%%%[ %%%%%%%!s %%""""""""""""" | | *[%%%%%! # #?#=%%!%%%%%%%sSS %"""""""""""""" | | %%![*%!% ! #??#!==% "@%%%%%SS n%"""""""""""""" | | %*%%[%[%%= ##??# =*"%" K% %% % %%"""""""""""""" | | !%=%%%%%% #???# % %% %%%% %%%%""""""""""""""" | | [%%=%%%%%[ ##???# % %%%%%% %%""""""""""""""" | | %==%*%%%! ?#??# "%%% %%%% %""""""""""""""" | | ===%=!%!%% #?# %= % %% %%% %""""""""""""""" | | %%%%[%% %% "%%"# ?# =%!%%%% %%%%%% """"""""""""""" | | %[%! = %! %[!/!= ?#% ! " % % %%%%""""""""""""""" | | %!%% %%[!!=!%%* !# """% %"%%%""""""""""""""" | | %*[*= %%%%%%=%/=*# % ""% "" %%%% """"""""""""""" | | =%%=% !%!%[![%%!%[#% %% %% % "%""""""""""""""" | | *!%%! =!!!%%%%!%%%! %% % % % % %"""""""""""""" | | [!!| %%%=%!%[%%**#%%%% %* % %%%%"""""""""""""" | | """%[% !%!%[!!%!!*%%!"""" " %%|% %"""""""""""""" | | "%% [%[|=![[=#%]%= """ %!%%% %""""""""""""" | | ![=!*% %!=*!! *=#=%[[ %%%% %[/ %%%"""""""""""" | | *%|%% %"%"" # !![= %s % % %%""""""""""" | | !!%!!"%% " ; ""! %s %%% % """""""""" | | "%!% " # # ""!s % sA % %""""""""" | | !%%%%%" "" "## #### " %% % %% %%"""""""" | | *% "%[% % #### #?# % % %%%% """"" | | %%!%%! ##?###?# % "% %%% % % | | """%%%"""%""#?????# % " %" %%%"% | | % !%%" #%"##??#??# " %%[%%%! = | | %!%[" " # ####??#% " % %%%/! | +----------------------------------------------------+ Best States ------------- Heat Dissipation 87 Coolant Potential 120 Energy Generation 87 Energy Capacity 1135 Matter Stores 300 Matter Capacity 300 Sight Range 24 Terrain Scan Range 30 Terrain Scan Density 210 ECM Strength 3 Jamming Range 16 Cloak Strength 4 Armor Coverage 900 Resistance: KI 30 Core Shielding 90 Utility Shielding 66 Weapon Shielding 90 Weapon Cycling 20 Melee Speed Boost 30 Phase Shifting 15 Evasion (%) 99 Targeting Accuracy 12 Launcher Accuracy 40 Target Analysis 10 Core Analysis 8 Armor Integrity Analysis 50 Recoil Reduction 7 Particle Charging 30 Kinecelleration 66 Offensive Hacking 14 Defensive Hacking 12 Authchip Count 1 Item Schematics ----------------- Huge Storage Unit | -9/Recycling | Hacked Multitool | -6/Factory | Scanalyzed Exp. Terrain Scanner | -6/Factory | Scanalyzed Ovr. Coil Gun | -6/Factory | Scanalyzed Hcp. Storage Unit | -6/Factory | Scanalyzed Enh. Optical Array | -6/Zion | Archive Arm. Medium Treads | -6/Zion | Archive Angular Momentum Engine | -6/Zion | Archive Remote Force Field | -6/Zion | Archive Imp. Trap Scanner | -6/Zion | Archive Adv. Cooling System | -6/Zion | Archive Arm. Leg | -6/Zion | Archive Impulse Thruster | -6/Zion | Archive Hardcell Cannon | -6/Zion | Archive Imp. Actuator Array | -6/Zion | Archive Point Defense System | -6/Zion | Archive Imp. Particle Charger | -6/Zion | Archive Imp. Component Analysis Suite | -6/Zion | Archive Imp. Remote Datajack | -6/Zion | Archive Hvy. Flak Cannon | -6/Zion | Archive Lrn. Phase Cannon | -6/Zion | Archive Adv. Hacking Suite | -5/Factory | Scanalyzed Assault Drone Bay | -4/Zhirov | Free Exp. Heat Sink | -4/Zhirov | Free Exp. Optical Array | -4/Zhirov | Free Imp. Arc Thrower | -4/Zhirov | Free Cmb. Linear Gravjet | -3/Research | Scanalyzed Centrium Heavy Armor Plating | -3/Testing | Scanalyzed Exp. Hacking Suite | -3/Testing | Hacked Hellfire Missile Launcher | -3/Testing | Scanalyzed Centrium Medium Armor Plating | -3/Testing | Scanalyzed Graphene Brace | -3/Testing | Scanalyzed Imp. Utility Shielding | -2/Quarantine | Scanalyzed Robot Schematics ------------------ M-28 Smith | -6/Factory | Hacked M-22 Extractor | -6/Zion | Archive A-02 Transporter | -6/Zion | Archive T-07 Excavator | -6/Zion | Archive Fabricated ------------ H-55 Commando | x2 | -6/Factory | Preloaded M-28 Smith | x1 | -6/Factory | Authchip Nova Cannon | x2 | -5/Factory | Preloaded Cmb. Linear Gravjet | x2 | -4/Factory | Preloaded M-28 Smith | x1 | -4/Factory B-60 Warrior | x3 | -4/Factory | Preloaded Biometal Heavy Treads | x1 | -4/Factory | Preloaded Repaired ---------- Centrium Heavy Treads | 56% | -4/Factory | Broken Centrium Medium Armor Plating | 37% | -3/Testing Adv. Force Field | 20% | -3/Testing Centrium Medium Armor Plating | 57% | -2/Research Enh. Biometal Leg | 47% | -2/Quarantine | Broken Exp. Myomer Leg | 17% | -2/Quarantine | Broken Alien Tech Used ----------------- Integrated Reactor Phase Redirector Subatomic Replicator Matter Drive Supercharged TR Achievements -------------- None Challenges ------------ None Game ------ Seed ActiveFusionMegatreads Manual? 0 Play Time 12:38:04 Cumulative 935.9 hours Start 2025.06.05 @ 16:23:23 End 2025.06.07 @ 12:13:16 Sessions 13 Manual Loads 0 Difficulty Rogue Special Mode None Game No. 175 Rogue 175 Adventurer 0 Explorer 0 Win Type - Total 52 Types 23/4/9/1/3/1/6/2/2/1 Lore% 90 Gallery% 92 Achievement% 91 Wizard Run 0 Options --------- Layout 0 ASCII 0 Keyboard 0 Movement Numpad Keybinds 0 Fullscreen 1 Font 18/SmallcapsGlow Map View 76x50 Zoom Use 0% Tactical HUD 1 Map Filters NONE Filters NONE Steam 1 RUN: c5693305-26e8-4a42-a0ca-1010c3d2855b